﻿Body Name ,Supp ID,Supplier Name,Supp Grp,Service Area Category,Supp Grp,Period,Invoice Date,TT,Unique Invoice Reference ,,Inv Amount,Account,Expenditure Description,Cost C,Cost Centre Name,Posted Amount
Nottimghamshire fire and rescue service ,101001,Express Recruitment Ltd,Express Recruitment Ltd,Management & Support Services,1,202402,10/05/2023,P6,9106293,-599.54 ,599.54 ,1005,Admin Agency Staff,2087,Estates Department (Previously Premises),499.62 
Nottimghamshire fire and rescue service ,101001,Express Recruitment Ltd,Express Recruitment Ltd,Management & Support Services,1,202402,17/05/2023,P6,9106405,-609.77 ,609.77 ,1005,Admin Agency Staff,2087,Estates Department (Previously Premises),508.14 
Nottimghamshire fire and rescue service ,101001,Express Recruitment Ltd,Express Recruitment Ltd,Management & Support Services,1,202402,03/05/2023,P6,9106222,-753.06 ,753.06 ,1005,Admin Agency Staff,2087,Estates Department (Previously Premises),627.55 
Nottimghamshire fire and rescue service ,101001,Express Recruitment Ltd,Express Recruitment Ltd,Management & Support Services,1,202402,31/05/2023,P6,9106538,-753.06 ,753.06 ,1005,Admin Agency Staff,2087,Estates Department (Previously Premises),627.55 
Nottimghamshire fire and rescue service ,103371,Nottinghamshire Healthcare NHS Trust,Nottinghamshire Healthcare NHS Trust,Management & Support Services,5,202402,24/04/2023,P6,9106454,"-3,034.22 ","3,034.22 ",1005,Admin Agency Staff,2068,Prevention,"3,034.22 "
Nottimghamshire fire and rescue service ,102532,Safequip Ltd,Safequip Ltd,Management & Support Services,1,202402,10/05/2023,P6,9106324,-274.80 ,274.80 ,1801,Training,2059,Corporate Training,105.00 
Nottimghamshire fire and rescue service ,102532,Safequip Ltd,Safequip Ltd,Management & Support Services,1,202402,10/05/2023,P6,9106324,-274.80 ,274.80 ,1801,Training,2059,Corporate Training,124.00 
Nottimghamshire fire and rescue service ,100236,Asian Fire Service Association,Asian Fire Service Association,Management & Support Services,1,202402,05/05/2023,P6,9106282,-290.00 ,290.00 ,1801,Training,2093,Command Suite,290.00 
Nottimghamshire fire and rescue service ,102532,Safequip Ltd,Safequip Ltd,Management & Support Services,1,202402,10/05/2023,P6,9106323,-302.40 ,302.40 ,1801,Training,2059,Corporate Training,15.00 
Nottimghamshire fire and rescue service ,102532,Safequip Ltd,Safequip Ltd,Management & Support Services,1,202402,10/05/2023,P6,9106323,-302.40 ,302.40 ,1801,Training,2059,Corporate Training,23.00 
Nottimghamshire fire and rescue service ,102532,Safequip Ltd,Safequip Ltd,Management & Support Services,1,202402,10/05/2023,P6,9106323,-302.40 ,302.40 ,1801,Training,2059,Corporate Training,214.00 
Nottimghamshire fire and rescue service ,103855,Lavat Consulting Ltd T/A PS TAX,Lavat Consulting Ltd T/A PS TAX,Management & Support Services,5,202402,23/05/2023,P6,9106471,-456.00 ,456.00 ,1801,Training,2081,Finance,380.00 
Nottimghamshire fire and rescue service ,103197,Legal Experience Training Limited,Legal Experience Training Limited,"Statutory Inspection, Certification & Enforcement",5,202402,28/04/2023,P6,9106174,-477.60 ,477.60 ,1801,Training,2021,Fire Protection,398.00 
Nottimghamshire fire and rescue service ,101805,The Stationery Office Ltd,The Stationery Office Ltd,Management & Support Services,1,202402,11/05/2023,P6,9106490,-550.00 ,550.00 ,1801,Training,2059,Corporate Training,550.00 
Nottimghamshire fire and rescue service ,104278,The Big Teacher Ltd,The Big Teacher Ltd,Management & Support Services,5,202402,18/05/2023,P6,9106397,-985.00 ,985.00 ,1801,Training,2059,Corporate Training,197.00 
Nottimghamshire fire and rescue service ,104278,The Big Teacher Ltd,The Big Teacher Ltd,Management & Support Services,5,202402,18/05/2023,P6,9106397,-985.00 ,985.00 ,1801,Training,2059,Corporate Training,788.00 
Nottimghamshire fire and rescue service ,102532,Safequip Ltd,Safequip Ltd,Management & Support Services,1,202402,17/05/2023,P6,9106400,"-1,116.00 ","1,116.00 ",1801,Training,2059,Corporate Training,465.00 
Nottimghamshire fire and rescue service ,102547,Firefighter Protection Uk,Firefighter Protection Uk,Management & Support Services,1,202402,03/05/2023,P6,9106271,"-1,386.72 ","1,386.72 ",1801,Training,2059,Corporate Training,239.55 
Nottimghamshire fire and rescue service ,100178,Skills For Justice,Skills For Justice,Management & Support Services,1,202402,30/04/2023,P6,9106199,"-1,675.00 ","1,675.00 ",1801,Training,2059,Corporate Training,"1,675.00 "
Nottimghamshire fire and rescue service ,104134,Xact Consultancy & Training Limited,Xact Consultancy & Training Limited,"Statutory Inspection, Certification & Enforcement",5,202402,30/05/2023,P6,9106508,"-1,728.00 ","1,728.00 ",1801,Training,2021,Fire Protection,480.00 
Nottimghamshire fire and rescue service ,104017,K Lamb Associates Limited,K Lamb Associates Limited,Management & Support Services,5,202402,19/05/2023,P6,9106406,"-3,540.00 ","3,540.00 ",1801,Training,2059,Corporate Training,"2,950.00 "
Nottimghamshire fire and rescue service ,104017,K Lamb Associates Limited,K Lamb Associates Limited,Management & Support Services,5,202402,26/05/2023,P6,9106512,"-3,540.00 ","3,540.00 ",1801,Training,2059,Corporate Training,"2,950.00 "
Nottimghamshire fire and rescue service ,100178,Skills For Justice,Skills For Justice,Management & Support Services,1,202402,30/04/2023,P6,9106198,"-8,375.00 ","8,375.00 ",1801,Training,2059,Corporate Training,"8,375.00 "
Nottimghamshire fire and rescue service ,104267,London Road Red watch Messing Account,London Road Red watch Messing Account,Operational Responses,8,202402,23/02/2023,P6,9106326,-384.00 ,384.00 ,1814,Spoilt Meal Reimbursement,1003,London Road,384.00 
Nottimghamshire fire and rescue service ,103377,Flat Fee Recruiter Limited,Flat Fee Recruiter Limited,Management & Support Services,5,202402,02/05/2023,P6,9106214,-322.80 ,322.80 ,1850,Recruitment Advertising,2075,Service Support Hub,269.00 
Nottimghamshire fire and rescue service ,103377,Flat Fee Recruiter Limited,Flat Fee Recruiter Limited,Management & Support Services,5,202402,12/05/2023,P6,9106333,-322.80 ,322.80 ,1850,Recruitment Advertising,2075,Service Support Hub,269.00 
Nottimghamshire fire and rescue service ,103377,Flat Fee Recruiter Limited,Flat Fee Recruiter Limited,Management & Support Services,5,202402,25/04/2023,P6,9106385,-322.80 ,322.80 ,1850,Recruitment Advertising,2049,Professional Support,269.00 
Nottimghamshire fire and rescue service ,103866,Richardson Associates (UK) Limited,Richardson Associates (UK) Limited,Management & Support Services,5,202402,30/04/2023,P6,9106215,"-1,554.00 ","1,554.00 ",1850,Recruitment Advertising,2049,Professional Support,"1,295.00 "
Nottimghamshire fire and rescue service ,100125,Nottinghamshire County Council,Nottinghamshire County Council,Management & Support Services,1,202402,23/03/2023,P6,9106335,"-1,598.76 ","1,598.76 ",1850,Recruitment Advertising,2075,Service Support Hub,"1,332.30 "
Nottimghamshire fire and rescue service ,103866,Richardson Associates (UK) Limited,Richardson Associates (UK) Limited,Management & Support Services,5,202402,25/05/2023,P6,9106517,"-1,830.00 ","1,830.00 ",1850,Recruitment Advertising,2049,Professional Support,"1,525.00 "
Nottimghamshire fire and rescue service ,103923,Bupa UK Insurance Services,Bupa UK Insurance Services,Management & Support Services,5,202402,27/04/2023,P6,9106217,"-3,272.77 ","3,272.77 ",1860,Employee Benefits Schemes,2075,Service Support Hub,"3,272.77 "
Nottimghamshire fire and rescue service ,102280,Amptron Electrical Services,Amptron Electrical Services,Operational Responses,1,202402,28/02/2023,P6,9106423,-567.83 ,567.83 ,2000,Buildings Repairs and Maintenance - Reactive,1029,Highfields Station,473.19 
Nottimghamshire fire and rescue service ,102280,Amptron Electrical Services,Amptron Electrical Services,Operational Responses,1,202402,26/05/2023,P6,9106545,"-3,820.74 ","3,820.74 ",2000,Buildings Repairs and Maintenance - Reactive,1005,Ashfield,"3,183.95 "
Nottimghamshire fire and rescue service ,102280,Amptron Electrical Services,Amptron Electrical Services,Operational Responses,1,202402,25/05/2023,P6,9106542,"-24,574.47 ","24,574.47 ",2000,Buildings Repairs and Maintenance - Reactive,1001,Mansfield,"2,356.18 "
Nottimghamshire fire and rescue service ,102280,Amptron Electrical Services,Amptron Electrical Services,Operational Responses,1,202402,25/05/2023,P6,9106542,"-24,574.47 ","24,574.47 ",2000,Buildings Repairs and Maintenance - Reactive,1002,Blidworth,"1,162.57 "
Nottimghamshire fire and rescue service ,102280,Amptron Electrical Services,Amptron Electrical Services,Operational Responses,1,202402,25/05/2023,P6,9106542,"-24,574.47 ","24,574.47 ",2000,Buildings Repairs and Maintenance - Reactive,1003,London Road,"1,891.13 "
Nottimghamshire fire and rescue service ,102280,Amptron Electrical Services,Amptron Electrical Services,Operational Responses,1,202402,25/05/2023,P6,9106542,"-24,574.47 ","24,574.47 ",2000,Buildings Repairs and Maintenance - Reactive,1005,Ashfield,"2,054.40 "
Nottimghamshire fire and rescue service ,102280,Amptron Electrical Services,Amptron Electrical Services,Operational Responses,1,202402,25/05/2023,P6,9106542,"-24,574.47 ","24,574.47 ",2000,Buildings Repairs and Maintenance - Reactive,1006,Edwinstowe,946.78 
Nottimghamshire fire and rescue service ,102280,Amptron Electrical Services,Amptron Electrical Services,Operational Responses,1,202402,25/05/2023,P6,9106542,"-24,574.47 ","24,574.47 ",2000,Buildings Repairs and Maintenance - Reactive,1008,Worksop,128.09 
Nottimghamshire fire and rescue service ,102280,Amptron Electrical Services,Amptron Electrical Services,Operational Responses,1,202402,25/05/2023,P6,9106542,"-24,574.47 ","24,574.47 ",2000,Buildings Repairs and Maintenance - Reactive,1010,Harworth,57.53 
Nottimghamshire fire and rescue service ,102280,Amptron Electrical Services,Amptron Electrical Services,Operational Responses,1,202402,25/05/2023,P6,9106542,"-24,574.47 ","24,574.47 ",2000,Buildings Repairs and Maintenance - Reactive,1011,Misterton,314.88 
Nottimghamshire fire and rescue service ,102280,Amptron Electrical Services,Amptron Electrical Services,Operational Responses,1,202402,25/05/2023,P6,9106542,"-24,574.47 ","24,574.47 ",2000,Buildings Repairs and Maintenance - Reactive,1012,Retford,505.81 
Nottimghamshire fire and rescue service ,102280,Amptron Electrical Services,Amptron Electrical Services,Operational Responses,1,202402,25/05/2023,P6,9106542,"-24,574.47 ","24,574.47 ",2000,Buildings Repairs and Maintenance - Reactive,1013,Tuxford,96.92 
Nottimghamshire fire and rescue service ,102280,Amptron Electrical Services,Amptron Electrical Services,Operational Responses,1,202402,25/05/2023,P6,9106542,"-24,574.47 ","24,574.47 ",2000,Buildings Repairs and Maintenance - Reactive,1014,Southwell,"1,681.14 "
Nottimghamshire fire and rescue service ,102280,Amptron Electrical Services,Amptron Electrical Services,Operational Responses,1,202402,25/05/2023,P6,9106542,"-24,574.47 ","24,574.47 ",2000,Buildings Repairs and Maintenance - Reactive,1015,Collingham,877.87 
Nottimghamshire fire and rescue service ,102280,Amptron Electrical Services,Amptron Electrical Services,Operational Responses,1,202402,25/05/2023,P6,9106542,"-24,574.47 ","24,574.47 ",2000,Buildings Repairs and Maintenance - Reactive,1016,Newark,"1,584.00 "
Nottimghamshire fire and rescue service ,102280,Amptron Electrical Services,Amptron Electrical Services,Operational Responses,1,202402,25/05/2023,P6,9106542,"-24,574.47 ","24,574.47 ",2000,Buildings Repairs and Maintenance - Reactive,1017,Bingham,452.48 
Nottimghamshire fire and rescue service ,102280,Amptron Electrical Services,Amptron Electrical Services,Operational Responses,1,202402,25/05/2023,P6,9106542,"-24,574.47 ","24,574.47 ",2000,Buildings Repairs and Maintenance - Reactive,1019,West Bridgford,336.00 
Nottimghamshire fire and rescue service ,102280,Amptron Electrical Services,Amptron Electrical Services,Operational Responses,1,202402,25/05/2023,P6,9106542,"-24,574.47 ","24,574.47 ",2000,Buildings Repairs and Maintenance - Reactive,1023,Stapleford,212.56 
Nottimghamshire fire and rescue service ,102280,Amptron Electrical Services,Amptron Electrical Services,Operational Responses,1,202402,25/05/2023,P6,9106542,"-24,574.47 ","24,574.47 ",2000,Buildings Repairs and Maintenance - Reactive,1026,Arnold,"1,066.58 "
Nottimghamshire fire and rescue service ,102280,Amptron Electrical Services,Amptron Electrical Services,Operational Responses,1,202402,25/05/2023,P6,9106542,"-24,574.47 ","24,574.47 ",2000,Buildings Repairs and Maintenance - Reactive,1027,Carlton,"1,144.73 "
Nottimghamshire fire and rescue service ,102280,Amptron Electrical Services,Amptron Electrical Services,Operational Responses,1,202402,25/05/2023,P6,9106542,"-24,574.47 ","24,574.47 ",2000,Buildings Repairs and Maintenance - Reactive,1028,East Leake,231.81 
Nottimghamshire fire and rescue service ,102280,Amptron Electrical Services,Amptron Electrical Services,Operational Responses,1,202402,25/05/2023,P6,9106542,"-24,574.47 ","24,574.47 ",2000,Buildings Repairs and Maintenance - Reactive,1029,Highfields Station,168.00 
Nottimghamshire fire and rescue service ,102280,Amptron Electrical Services,Amptron Electrical Services,Management & Support Services,1,202402,25/05/2023,P6,9106542,"-24,574.47 ","24,574.47 ",2000,Buildings Repairs and Maintenance - Reactive,1030,Service Development Centre,"3,209.28 "
Nottimghamshire fire and rescue service ,101767,Cathedral Leasing Limited,Cathedral Leasing Limited,Management & Support Services,1,202402,24/03/2023,P6,9106313,"-3,715.20 ","3,715.20 ",2050,Building Maintenance - Planned,2087,Estates Department (Previously Premises),"3,096.00 "
Nottimghamshire fire and rescue service ,102280,Amptron Electrical Services,Amptron Electrical Services,Operational Responses,1,202402,26/05/2023,P6,9106543,"-4,168.06 ","4,168.06 ",2050,Building Maintenance - Planned,1005,Ashfield,"3,473.38 "
Nottimghamshire fire and rescue service ,102280,Amptron Electrical Services,Amptron Electrical Services,Operational Responses,1,202402,26/05/2023,P6,9106544,"-6,668.88 ","6,668.88 ",2050,Building Maintenance - Planned,1005,Ashfield,"5,557.40 "
Nottimghamshire fire and rescue service ,102280,Amptron Electrical Services,Amptron Electrical Services,Operational Responses,1,202402,30/04/2023,P6,9106234,"-13,931.58 ","13,931.58 ",2050,Building Maintenance - Planned,1001,Mansfield,"1,096.57 "
Nottimghamshire fire and rescue service ,102280,Amptron Electrical Services,Amptron Electrical Services,Operational Responses,1,202402,30/04/2023,P6,9106234,"-13,931.58 ","13,931.58 ",2050,Building Maintenance - Planned,1002,Blidworth,57.60 
Nottimghamshire fire and rescue service ,102280,Amptron Electrical Services,Amptron Electrical Services,Operational Responses,1,202402,30/04/2023,P6,9106234,"-13,931.58 ","13,931.58 ",2050,Building Maintenance - Planned,1003,London Road,150.00 
Nottimghamshire fire and rescue service ,102280,Amptron Electrical Services,Amptron Electrical Services,Operational Responses,1,202402,30/04/2023,P6,9106234,"-13,931.58 ","13,931.58 ",2050,Building Maintenance - Planned,1005,Ashfield,973.51 
Nottimghamshire fire and rescue service ,102280,Amptron Electrical Services,Amptron Electrical Services,Operational Responses,1,202402,30/04/2023,P6,9106234,"-13,931.58 ","13,931.58 ",2050,Building Maintenance - Planned,1006,Edwinstowe,132.00 
Nottimghamshire fire and rescue service ,102280,Amptron Electrical Services,Amptron Electrical Services,Operational Responses,1,202402,30/04/2023,P6,9106234,"-13,931.58 ","13,931.58 ",2050,Building Maintenance - Planned,1007,Warsop,76.80 
Nottimghamshire fire and rescue service ,102280,Amptron Electrical Services,Amptron Electrical Services,Operational Responses,1,202402,30/04/2023,P6,9106234,"-13,931.58 ","13,931.58 ",2050,Building Maintenance - Planned,1010,Harworth,100.80 
Nottimghamshire fire and rescue service ,102280,Amptron Electrical Services,Amptron Electrical Services,Operational Responses,1,202402,30/04/2023,P6,9106234,"-13,931.58 ","13,931.58 ",2050,Building Maintenance - Planned,1011,Misterton,296.06 
Nottimghamshire fire and rescue service ,102280,Amptron Electrical Services,Amptron Electrical Services,Operational Responses,1,202402,30/04/2023,P6,9106234,"-13,931.58 ","13,931.58 ",2050,Building Maintenance - Planned,1012,Retford,451.50 
Nottimghamshire fire and rescue service ,102280,Amptron Electrical Services,Amptron Electrical Services,Operational Responses,1,202402,30/04/2023,P6,9106234,"-13,931.58 ","13,931.58 ",2050,Building Maintenance - Planned,1013,Tuxford,410.70 
Nottimghamshire fire and rescue service ,102280,Amptron Electrical Services,Amptron Electrical Services,Operational Responses,1,202402,30/04/2023,P6,9106234,"-13,931.58 ","13,931.58 ",2050,Building Maintenance - Planned,1014,Southwell,87.83 
Nottimghamshire fire and rescue service ,102280,Amptron Electrical Services,Amptron Electrical Services,Operational Responses,1,202402,30/04/2023,P6,9106234,"-13,931.58 ","13,931.58 ",2050,Building Maintenance - Planned,1015,Collingham,86.40 
Nottimghamshire fire and rescue service ,102280,Amptron Electrical Services,Amptron Electrical Services,Operational Responses,1,202402,30/04/2023,P6,9106234,"-13,931.58 ","13,931.58 ",2050,Building Maintenance - Planned,1016,Newark,100.80 
Nottimghamshire fire and rescue service ,102280,Amptron Electrical Services,Amptron Electrical Services,Operational Responses,1,202402,30/04/2023,P6,9106234,"-13,931.58 ","13,931.58 ",2050,Building Maintenance - Planned,1017,Bingham,92.63 
Nottimghamshire fire and rescue service ,102280,Amptron Electrical Services,Amptron Electrical Services,Operational Responses,1,202402,30/04/2023,P6,9106234,"-13,931.58 ","13,931.58 ",2050,Building Maintenance - Planned,1019,West Bridgford,147.83 
Nottimghamshire fire and rescue service ,102280,Amptron Electrical Services,Amptron Electrical Services,Operational Responses,1,202402,30/04/2023,P6,9106234,"-13,931.58 ","13,931.58 ",2050,Building Maintenance - Planned,1020,Stockhill,"1,127.06 "
Nottimghamshire fire and rescue service ,102280,Amptron Electrical Services,Amptron Electrical Services,Operational Responses,1,202402,30/04/2023,P6,9106234,"-13,931.58 ","13,931.58 ",2050,Building Maintenance - Planned,1024,Eastwood,96.00 
Nottimghamshire fire and rescue service ,102280,Amptron Electrical Services,Amptron Electrical Services,Operational Responses,1,202402,30/04/2023,P6,9106234,"-13,931.58 ","13,931.58 ",2050,Building Maintenance - Planned,1026,Arnold,412.85 
Nottimghamshire fire and rescue service ,102280,Amptron Electrical Services,Amptron Electrical Services,Operational Responses,1,202402,30/04/2023,P6,9106234,"-13,931.58 ","13,931.58 ",2050,Building Maintenance - Planned,1027,Carlton,360.92 
Nottimghamshire fire and rescue service ,102280,Amptron Electrical Services,Amptron Electrical Services,Operational Responses,1,202402,30/04/2023,P6,9106234,"-13,931.58 ","13,931.58 ",2050,Building Maintenance - Planned,1028,East Leake,87.83 
Nottimghamshire fire and rescue service ,102280,Amptron Electrical Services,Amptron Electrical Services,Operational Responses,1,202402,30/04/2023,P6,9106234,"-13,931.58 ","13,931.58 ",2050,Building Maintenance - Planned,1029,Highfields Station,644.02 
Nottimghamshire fire and rescue service ,102280,Amptron Electrical Services,Amptron Electrical Services,Management & Support Services,1,202402,30/04/2023,P6,9106234,"-13,931.58 ","13,931.58 ",2050,Building Maintenance - Planned,1030,Service Development Centre,"4,619.94 "
Nottimghamshire fire and rescue service ,102280,Amptron Electrical Services,Amptron Electrical Services,Operational Responses,1,202402,30/04/2023,P6,9106325,"-17,995.64 ","17,995.64 ",2050,Building Maintenance - Planned,1001,Mansfield,399.83 
Nottimghamshire fire and rescue service ,102280,Amptron Electrical Services,Amptron Electrical Services,Operational Responses,1,202402,30/04/2023,P6,9106325,"-17,995.64 ","17,995.64 ",2050,Building Maintenance - Planned,1002,Blidworth,446.03 
Nottimghamshire fire and rescue service ,102280,Amptron Electrical Services,Amptron Electrical Services,Operational Responses,1,202402,30/04/2023,P6,9106325,"-17,995.64 ","17,995.64 ",2050,Building Maintenance - Planned,1003,London Road,"1,661.28 "
Nottimghamshire fire and rescue service ,102280,Amptron Electrical Services,Amptron Electrical Services,Operational Responses,1,202402,30/04/2023,P6,9106325,"-17,995.64 ","17,995.64 ",2050,Building Maintenance - Planned,1005,Ashfield,183.83 
Nottimghamshire fire and rescue service ,102280,Amptron Electrical Services,Amptron Electrical Services,Operational Responses,1,202402,30/04/2023,P6,9106325,"-17,995.64 ","17,995.64 ",2050,Building Maintenance - Planned,1006,Edwinstowe,313.43 
Nottimghamshire fire and rescue service ,102280,Amptron Electrical Services,Amptron Electrical Services,Operational Responses,1,202402,30/04/2023,P6,9106325,"-17,995.64 ","17,995.64 ",2050,Building Maintenance - Planned,1007,Warsop,177.92 
Nottimghamshire fire and rescue service ,102280,Amptron Electrical Services,Amptron Electrical Services,Operational Responses,1,202402,30/04/2023,P6,9106325,"-17,995.64 ","17,995.64 ",2050,Building Maintenance - Planned,1010,Harworth,97.43 
Nottimghamshire fire and rescue service ,102280,Amptron Electrical Services,Amptron Electrical Services,Operational Responses,1,202402,30/04/2023,P6,9106325,"-17,995.64 ","17,995.64 ",2050,Building Maintenance - Planned,1011,Misterton,140.63 
Nottimghamshire fire and rescue service ,102280,Amptron Electrical Services,Amptron Electrical Services,Operational Responses,1,202402,30/04/2023,P6,9106325,"-17,995.64 ","17,995.64 ",2050,Building Maintenance - Planned,1012,Retford,642.59 
Nottimghamshire fire and rescue service ,102280,Amptron Electrical Services,Amptron Electrical Services,Operational Responses,1,202402,30/04/2023,P6,9106325,"-17,995.64 ","17,995.64 ",2050,Building Maintenance - Planned,1013,Tuxford,140.63 
Nottimghamshire fire and rescue service ,102280,Amptron Electrical Services,Amptron Electrical Services,Operational Responses,1,202402,30/04/2023,P6,9106325,"-17,995.64 ","17,995.64 ",2050,Building Maintenance - Planned,1014,Southwell,348.86 
Nottimghamshire fire and rescue service ,102280,Amptron Electrical Services,Amptron Electrical Services,Operational Responses,1,202402,30/04/2023,P6,9106325,"-17,995.64 ","17,995.64 ",2050,Building Maintenance - Planned,1015,Collingham,97.43 
Nottimghamshire fire and rescue service ,102280,Amptron Electrical Services,Amptron Electrical Services,Operational Responses,1,202402,30/04/2023,P6,9106325,"-17,995.64 ","17,995.64 ",2050,Building Maintenance - Planned,1016,Newark,997.70 
Nottimghamshire fire and rescue service ,102280,Amptron Electrical Services,Amptron Electrical Services,Operational Responses,1,202402,30/04/2023,P6,9106325,"-17,995.64 ","17,995.64 ",2050,Building Maintenance - Planned,1017,Bingham,123.69 
Nottimghamshire fire and rescue service ,102280,Amptron Electrical Services,Amptron Electrical Services,Operational Responses,1,202402,30/04/2023,P6,9106325,"-17,995.64 ","17,995.64 ",2050,Building Maintenance - Planned,1019,West Bridgford,380.80 
Nottimghamshire fire and rescue service ,102280,Amptron Electrical Services,Amptron Electrical Services,Operational Responses,1,202402,30/04/2023,P6,9106325,"-17,995.64 ","17,995.64 ",2050,Building Maintenance - Planned,1020,Stockhill,270.23 
Nottimghamshire fire and rescue service ,102280,Amptron Electrical Services,Amptron Electrical Services,Operational Responses,1,202402,30/04/2023,P6,9106325,"-17,995.64 ","17,995.64 ",2050,Building Maintenance - Planned,1023,Stapleford,305.66 
Nottimghamshire fire and rescue service ,102280,Amptron Electrical Services,Amptron Electrical Services,Operational Responses,1,202402,30/04/2023,P6,9106325,"-17,995.64 ","17,995.64 ",2050,Building Maintenance - Planned,1024,Eastwood,54.23 
Nottimghamshire fire and rescue service ,102280,Amptron Electrical Services,Amptron Electrical Services,Operational Responses,1,202402,30/04/2023,P6,9106325,"-17,995.64 ","17,995.64 ",2050,Building Maintenance - Planned,1026,Arnold,216.00 
Nottimghamshire fire and rescue service ,102280,Amptron Electrical Services,Amptron Electrical Services,Operational Responses,1,202402,30/04/2023,P6,9106325,"-17,995.64 ","17,995.64 ",2050,Building Maintenance - Planned,1027,Carlton,"3,009.71 "
Nottimghamshire fire and rescue service ,102280,Amptron Electrical Services,Amptron Electrical Services,Operational Responses,1,202402,30/04/2023,P6,9106325,"-17,995.64 ","17,995.64 ",2050,Building Maintenance - Planned,1028,East Leake,429.35 
Nottimghamshire fire and rescue service ,102280,Amptron Electrical Services,Amptron Electrical Services,Operational Responses,1,202402,30/04/2023,P6,9106325,"-17,995.64 ","17,995.64 ",2050,Building Maintenance - Planned,1029,Highfields Station,"3,284.96 "
Nottimghamshire fire and rescue service ,102280,Amptron Electrical Services,Amptron Electrical Services,Management & Support Services,1,202402,30/04/2023,P6,9106325,"-17,995.64 ","17,995.64 ",2050,Building Maintenance - Planned,1030,Service Development Centre,"1,274.15 "
Nottimghamshire fire and rescue service ,102744,EDF Energy,EDF Energy,Operational Responses,1,202402,18/05/2023,P6,9106435,-375.55 ,375.55 ,2100,Electricity,1002,Blidworth,2.83 
Nottimghamshire fire and rescue service ,102744,EDF Energy,EDF Energy,Operational Responses,1,202402,18/05/2023,P6,9106435,-375.55 ,375.55 ,2100,Electricity,1002,Blidworth,354.97 
Nottimghamshire fire and rescue service ,102744,EDF Energy,EDF Energy,Operational Responses,1,202402,01/07/2022,P6,9106372,-408.21 ,408.21 ,2100,Electricity,1013,Tuxford,340.17 
Nottimghamshire fire and rescue service ,102744,EDF Energy,EDF Energy,Operational Responses,1,202402,01/08/2022,P6,9106374,-431.62 ,431.62 ,2100,Electricity,1013,Tuxford,0.36 
Nottimghamshire fire and rescue service ,102744,EDF Energy,EDF Energy,Operational Responses,1,202402,01/08/2022,P6,9106374,-431.62 ,431.62 ,2100,Electricity,1013,Tuxford,359.38 
Nottimghamshire fire and rescue service ,102744,EDF Energy,EDF Energy,Operational Responses,1,202402,01/09/2022,P6,9106373,-449.65 ,449.65 ,2100,Electricity,1013,Tuxford,374.71 
Nottimghamshire fire and rescue service ,101903,Siemens Energy Services Ltd,Siemens Energy Services Ltd,Operational Responses,1,202402,02/05/2023,P6,9106258,-643.20 ,643.20 ,2100,Electricity,1012,Retford,536.00 
Nottimghamshire fire and rescue service ,102744,EDF Energy,EDF Energy,Operational Responses,1,202402,16/05/2023,P6,9106453,"-1,046.19 ","1,046.19 ",2100,Electricity,1001,Mansfield,0.42 
Nottimghamshire fire and rescue service ,102744,EDF Energy,EDF Energy,Operational Responses,1,202402,16/05/2023,P6,9106453,"-1,046.19 ","1,046.19 ",2100,Electricity,1001,Mansfield,871.48 
Nottimghamshire fire and rescue service ,102744,EDF Energy,EDF Energy,Operational Responses,1,202402,16/05/2023,P6,9106378,"-1,104.96 ","1,104.96 ",2100,Electricity,1013,Tuxford,0.45 
Nottimghamshire fire and rescue service ,102744,EDF Energy,EDF Energy,Operational Responses,1,202402,16/05/2023,P6,9106378,"-1,104.96 ","1,104.96 ",2100,Electricity,1013,Tuxford,920.42 
Nottimghamshire fire and rescue service ,102744,EDF Energy,EDF Energy,Prevention & Education,1,202402,16/02/2023,P6,9106375,"-1,872.86 ","1,872.86 ",2100,Electricity,1036,Clifton Community Safety Centre,0.94 
Nottimghamshire fire and rescue service ,102744,EDF Energy,EDF Energy,Prevention & Education,1,202402,16/02/2023,P6,9106375,"-1,872.86 ","1,872.86 ",2100,Electricity,1036,Clifton Community Safety Centre,"1,559.92 "
Nottimghamshire fire and rescue service ,102744,EDF Energy,EDF Energy,Operational Responses,1,202402,26/04/2023,P6,9106292,"-1,937.56 ","1,937.56 ",2100,Electricity,1010,Harworth,"1,614.64 "
Nottimghamshire fire and rescue service ,102744,EDF Energy,EDF Energy,Operational Responses,1,202402,16/05/2023,P6,9106379,"-2,324.73 ","2,324.73 ",2100,Electricity,1026,Arnold,0.89 
Nottimghamshire fire and rescue service ,102744,EDF Energy,EDF Energy,Operational Responses,1,202402,16/05/2023,P6,9106379,"-2,324.73 ","2,324.73 ",2100,Electricity,1026,Arnold,"1,936.53 "
Nottimghamshire fire and rescue service ,102744,EDF Energy,EDF Energy,Operational Responses,1,202402,16/05/2023,P6,9106381,"-2,737.38 ","2,737.38 ",2100,Electricity,1008,Worksop,"2,281.15 "
Nottimghamshire fire and rescue service ,102744,EDF Energy,EDF Energy,Operational Responses,1,202402,06/03/2023,P6,9106376,"-23,721.50 ","23,721.50 ",2100,Electricity,1003,London Road,"2,615.40 "
Nottimghamshire fire and rescue service ,102744,EDF Energy,EDF Energy,Operational Responses,1,202402,06/03/2023,P6,9106376,"-23,721.50 ","23,721.50 ",2100,Electricity,1012,Retford,"2,029.90 "
Nottimghamshire fire and rescue service ,102744,EDF Energy,EDF Energy,Operational Responses,1,202402,06/03/2023,P6,9106376,"-23,721.50 ","23,721.50 ",2100,Electricity,1016,Newark,"1,312.75 "
Nottimghamshire fire and rescue service ,102744,EDF Energy,EDF Energy,Operational Responses,1,202402,06/03/2023,P6,9106376,"-23,721.50 ","23,721.50 ",2100,Electricity,1027,Carlton,"2,620.62 "
Nottimghamshire fire and rescue service ,102744,EDF Energy,EDF Energy,Operational Responses,1,202402,06/03/2023,P6,9106376,"-23,721.50 ","23,721.50 ",2100,Electricity,1029,Highfields Station,"5,975.87 "
Nottimghamshire fire and rescue service ,102744,EDF Energy,EDF Energy,Management & Support Services,1,202402,06/03/2023,P6,9106376,"-23,721.50 ","23,721.50 ",2100,Electricity,1030,Service Development Centre,"3,556.27 "
Nottimghamshire fire and rescue service ,102744,EDF Energy,EDF Energy,Management & Support Services,1,202402,06/03/2023,P6,9106376,"-23,721.50 ","23,721.50 ",2100,Electricity,1035,Headquarters,"1,657.12 "
Nottimghamshire fire and rescue service ,104098,Total Gas & Power Limited,Total Gas & Power Limited,Operational Responses,5,202402,04/05/2023,P6,9106255,"3,428.46 ","-3,428.46 ",2101,Gas,1020,Stockhill,"-2,857.05 "
Nottimghamshire fire and rescue service ,104098,Total Gas & Power Limited,Total Gas & Power Limited,Operational Responses,5,202402,04/05/2023,P6,9106248,336.26 ,-336.26 ,2101,Gas,1007,Warsop,-320.25 
Nottimghamshire fire and rescue service ,104098,Total Gas & Power Limited,Total Gas & Power Limited,Operational Responses,5,202402,17/05/2023,P6,9106440,-269.24 ,269.24 ,2101,Gas,1002,Blidworth,256.42 
Nottimghamshire fire and rescue service ,104098,Total Gas & Power Limited,Total Gas & Power Limited,Operational Responses,5,202402,17/05/2023,P6,9106450,-269.33 ,269.33 ,2101,Gas,1007,Warsop,256.50 
Nottimghamshire fire and rescue service ,104098,Total Gas & Power Limited,Total Gas & Power Limited,Operational Responses,5,202402,17/05/2023,P6,9106449,-301.41 ,301.41 ,2101,Gas,1015,Collingham,287.06 
Nottimghamshire fire and rescue service ,104098,Total Gas & Power Limited,Total Gas & Power Limited,Operational Responses,5,202402,18/04/2023,P6,9106155,-301.98 ,301.98 ,2101,Gas,1015,Collingham,287.60 
Nottimghamshire fire and rescue service ,104098,Total Gas & Power Limited,Total Gas & Power Limited,Operational Responses,5,202402,17/05/2023,P6,9106433,-320.11 ,320.11 ,2101,Gas,1014,Southwell,304.87 
Nottimghamshire fire and rescue service ,104098,Total Gas & Power Limited,Total Gas & Power Limited,Management & Support Services,5,202402,17/05/2023,P6,9106439,-321.79 ,321.79 ,2101,Gas,1035,Headquarters,306.47 
Nottimghamshire fire and rescue service ,104098,Total Gas & Power Limited,Total Gas & Power Limited,Operational Responses,5,202402,18/04/2023,P6,9106162,-336.26 ,336.26 ,2101,Gas,1007,Warsop,320.25 
Nottimghamshire fire and rescue service ,104098,Total Gas & Power Limited,Total Gas & Power Limited,Management & Support Services,5,202402,18/04/2023,P6,9106165,-410.93 ,410.93 ,2101,Gas,1035,Headquarters,342.44 
Nottimghamshire fire and rescue service ,104098,Total Gas & Power Limited,Total Gas & Power Limited,Operational Responses,5,202402,18/04/2023,P6,9106154,-414.31 ,414.31 ,2101,Gas,1014,Southwell,345.26 
Nottimghamshire fire and rescue service ,104098,Total Gas & Power Limited,Total Gas & Power Limited,Operational Responses,5,202402,18/04/2023,P6,9106146,-518.39 ,518.39 ,2101,Gas,1015,Collingham,431.99 
Nottimghamshire fire and rescue service ,104098,Total Gas & Power Limited,Total Gas & Power Limited,Operational Responses,5,202402,17/05/2023,P6,9106427,-619.59 ,619.59 ,2101,Gas,1010,Harworth,516.32 
Nottimghamshire fire and rescue service ,104098,Total Gas & Power Limited,Total Gas & Power Limited,Operational Responses,5,202402,17/05/2023,P6,9106430,-647.80 ,647.80 ,2101,Gas,1017,Bingham,539.83 
Nottimghamshire fire and rescue service ,104098,Total Gas & Power Limited,Total Gas & Power Limited,Operational Responses,5,202402,18/04/2023,P6,9106166,-684.90 ,684.90 ,2101,Gas,1017,Bingham,570.75 
Nottimghamshire fire and rescue service ,104098,Total Gas & Power Limited,Total Gas & Power Limited,Operational Responses,5,202402,18/04/2023,P6,9106161,-703.17 ,703.17 ,2101,Gas,1010,Harworth,585.98 
Nottimghamshire fire and rescue service ,104098,Total Gas & Power Limited,Total Gas & Power Limited,Operational Responses,5,202402,17/05/2023,P6,9106441,-814.67 ,814.67 ,2101,Gas,1001,Mansfield,678.89 
Nottimghamshire fire and rescue service ,104098,Total Gas & Power Limited,Total Gas & Power Limited,Operational Responses,5,202402,17/05/2023,P6,9106428,-817.69 ,817.69 ,2101,Gas,1015,Collingham,681.41 
Nottimghamshire fire and rescue service ,104098,Total Gas & Power Limited,Total Gas & Power Limited,Operational Responses,5,202402,18/04/2023,P6,9106158,-860.25 ,860.25 ,2101,Gas,1001,Mansfield,716.87 
Nottimghamshire fire and rescue service ,104098,Total Gas & Power Limited,Total Gas & Power Limited,Operational Responses,5,202402,17/05/2023,P6,9106434,-941.42 ,941.42 ,2101,Gas,1016,Newark,784.51 
Nottimghamshire fire and rescue service ,104098,Total Gas & Power Limited,Total Gas & Power Limited,Operational Responses,5,202402,18/04/2023,P6,9106156,-992.98 ,992.98 ,2101,Gas,1016,Newark,827.48 
Nottimghamshire fire and rescue service ,104098,Total Gas & Power Limited,Total Gas & Power Limited,Operational Responses,5,202402,17/05/2023,P6,9106443,-994.12 ,994.12 ,2101,Gas,1027,Carlton,828.43 
Nottimghamshire fire and rescue service ,104098,Total Gas & Power Limited,Total Gas & Power Limited,Operational Responses,5,202402,04/05/2023,P6,9106256,"-1,176.90 ","1,176.90 ",2101,Gas,1020,Stockhill,980.75 
Nottimghamshire fire and rescue service ,104098,Total Gas & Power Limited,Total Gas & Power Limited,Operational Responses,5,202402,18/04/2023,P6,9106151,"-1,196.69 ","1,196.69 ",2101,Gas,1027,Carlton,997.24 
Nottimghamshire fire and rescue service ,104098,Total Gas & Power Limited,Total Gas & Power Limited,Operational Responses,5,202402,17/05/2023,P6,9106445,"-1,320.92 ","1,320.92 ",2101,Gas,1012,Retford,"1,100.77 "
Nottimghamshire fire and rescue service ,104098,Total Gas & Power Limited,Total Gas & Power Limited,Operational Responses,5,202402,17/05/2023,P6,9106444,"-1,374.27 ","1,374.27 ",2101,Gas,1024,Eastwood,"1,145.23 "
Nottimghamshire fire and rescue service ,104098,Total Gas & Power Limited,Total Gas & Power Limited,Operational Responses,5,202402,18/04/2023,P6,9106147,"-1,416.19 ","1,416.19 ",2101,Gas,1012,Retford,"1,180.15 "
Nottimghamshire fire and rescue service ,104098,Total Gas & Power Limited,Total Gas & Power Limited,Operational Responses,5,202402,18/04/2023,P6,9106150,"-1,437.36 ","1,437.36 ",2101,Gas,1024,Eastwood,"1,197.80 "
Nottimghamshire fire and rescue service ,104098,Total Gas & Power Limited,Total Gas & Power Limited,Operational Responses,5,202402,17/05/2023,P6,9106429,"-1,561.47 ","1,561.47 ",2101,Gas,1019,West Bridgford,"1,301.23 "
Nottimghamshire fire and rescue service ,104098,Total Gas & Power Limited,Total Gas & Power Limited,Operational Responses,5,202402,17/05/2023,P6,9106437,"-1,855.20 ","1,855.20 ",2101,Gas,1020,Stockhill,"1,546.00 "
Nottimghamshire fire and rescue service ,104098,Total Gas & Power Limited,Total Gas & Power Limited,Operational Responses,5,202402,17/05/2023,P6,9106432,"-1,927.56 ","1,927.56 ",2101,Gas,1006,Edwinstowe,"1,606.30 "
Nottimghamshire fire and rescue service ,104098,Total Gas & Power Limited,Total Gas & Power Limited,Operational Responses,5,202402,18/04/2023,P6,9106164,"-1,940.73 ","1,940.73 ",2101,Gas,1016,Newark,"1,617.27 "
Nottimghamshire fire and rescue service ,104098,Total Gas & Power Limited,Total Gas & Power Limited,Operational Responses,5,202402,18/04/2023,P6,9106145,"-2,014.77 ","2,014.77 ",2101,Gas,1019,West Bridgford,"1,678.97 "
Nottimghamshire fire and rescue service ,104098,Total Gas & Power Limited,Total Gas & Power Limited,Management & Support Services,5,202402,17/05/2023,P6,9106431,"-2,017.28 ","2,017.28 ",2101,Gas,1030,Service Development Centre,"1,681.07 "
Nottimghamshire fire and rescue service ,104098,Total Gas & Power Limited,Total Gas & Power Limited,Operational Responses,5,202402,18/04/2023,P6,9106160,"-2,019.61 ","2,019.61 ",2101,Gas,1006,Edwinstowe,"1,683.01 "
Nottimghamshire fire and rescue service ,104098,Total Gas & Power Limited,Total Gas & Power Limited,Operational Responses,5,202402,17/05/2023,P6,9106442,"-2,208.98 ","2,208.98 ",2101,Gas,1026,Arnold,"1,840.82 "
Nottimghamshire fire and rescue service ,104098,Total Gas & Power Limited,Total Gas & Power Limited,Operational Responses,5,202402,18/04/2023,P6,9106153,"-2,340.65 ","2,340.65 ",2101,Gas,1026,Arnold,"1,950.54 "
Nottimghamshire fire and rescue service ,104098,Total Gas & Power Limited,Total Gas & Power Limited,Operational Responses,5,202402,17/05/2023,P6,9106447,"-2,810.14 ","2,810.14 ",2101,Gas,1029,Highfields Station,"2,341.79 "
Nottimghamshire fire and rescue service ,102655,Nottingham City Council (City Treasurer),Nottingham City Council (City Treasurer),Operational Responses,1,202402,09/05/2023,P6,9106367,"-3,172.06 ","3,172.06 ",2101,Gas,1003,London Road,"2,643.38 "
Nottimghamshire fire and rescue service ,104098,Total Gas & Power Limited,Total Gas & Power Limited,Operational Responses,5,202402,18/04/2023,P6,9106148,"-3,333.35 ","3,333.35 ",2101,Gas,1005,Ashfield,"2,777.79 "
Nottimghamshire fire and rescue service ,104098,Total Gas & Power Limited,Total Gas & Power Limited,Operational Responses,5,202402,18/04/2023,P6,9106167,"-3,428.46 ","3,428.46 ",2101,Gas,1020,Stockhill,"2,857.05 "
Nottimghamshire fire and rescue service ,104098,Total Gas & Power Limited,Total Gas & Power Limited,Operational Responses,5,202402,17/05/2023,P6,9106448,"-3,527.05 ","3,527.05 ",2101,Gas,1005,Ashfield,"2,939.21 "
Nottimghamshire fire and rescue service ,104098,Total Gas & Power Limited,Total Gas & Power Limited,Operational Responses,5,202402,18/04/2023,P6,9106157,"-3,533.11 ","3,533.11 ",2101,Gas,1029,Highfields Station,"2,944.26 "
Nottimghamshire fire and rescue service ,104098,Total Gas & Power Limited,Total Gas & Power Limited,Operational Responses,5,202402,17/05/2023,P6,9106446,"-4,518.99 ","4,518.99 ",2101,Gas,1001,Mansfield,"3,765.83 "
Nottimghamshire fire and rescue service ,104098,Total Gas & Power Limited,Total Gas & Power Limited,Operational Responses,5,202402,18/04/2023,P6,9106152,"-4,611.70 ","4,611.70 ",2101,Gas,1001,Mansfield,"3,843.08 "
Nottimghamshire fire and rescue service ,104007,Castle Water Limited,Castle Water Limited,Operational Responses,5,202402,13/04/2022,P6,9106364,-309.14 ,309.14 ,2103,Water Rates,1008,Worksop,90.46 
Nottimghamshire fire and rescue service ,104007,Castle Water Limited,Castle Water Limited,Operational Responses,5,202402,06/05/2022,P6,9106366,-314.48 ,314.48 ,2103,Water Rates,1008,Worksop,89.66 
Nottimghamshire fire and rescue service ,104007,Castle Water Limited,Castle Water Limited,Management & Support Services,5,202402,04/05/2023,P6,9106368,-328.35 ,328.35 ,2103,Water Rates,2087,Estates Department (Previously Premises),328.35 
Nottimghamshire fire and rescue service ,102276,Water Plus Limited (Payments Centre),Water Plus Limited (Payments Centre),Operational Responses,1,202402,03/05/2023,P6,9106291,-439.66 ,439.66 ,2103,Water Rates,1008,Worksop,106.81 
Nottimghamshire fire and rescue service ,104007,Castle Water Limited,Castle Water Limited,Operational Responses,5,202402,15/06/2023,P6,9106365,-501.91 ,501.91 ,2103,Water Rates,1008,Worksop,197.37 
Nottimghamshire fire and rescue service ,104007,Castle Water Limited,Castle Water Limited,Operational Responses,5,202402,07/09/2021,P6,9106290,"-1,134.10 ","1,134.10 ",2103,Water Rates,1028,East Leake,692.24 
Nottimghamshire fire and rescue service ,104007,Castle Water Limited,Castle Water Limited,Operational Responses,5,202402,24/11/2021,P6,9106289,"-1,221.22 ","1,221.22 ",2103,Water Rates,1010,Harworth,745.46 
Nottimghamshire fire and rescue service ,104256,Advanced Demand Side Management Limited,Advanced Demand Side Management Limited,Operational Responses,5,202402,06/04/2023,P6,9106144,"-5,420.24 ","5,420.24 ",2103,Water Rates,1001,Mansfield,16.61 
Nottimghamshire fire and rescue service ,104256,Advanced Demand Side Management Limited,Advanced Demand Side Management Limited,Operational Responses,5,202402,06/04/2023,P6,9106144,"-5,420.24 ","5,420.24 ",2103,Water Rates,1001,Mansfield,29.40 
Nottimghamshire fire and rescue service ,104256,Advanced Demand Side Management Limited,Advanced Demand Side Management Limited,Operational Responses,5,202402,06/04/2023,P6,9106144,"-5,420.24 ","5,420.24 ",2103,Water Rates,1002,Blidworth,1.64 
Nottimghamshire fire and rescue service ,104256,Advanced Demand Side Management Limited,Advanced Demand Side Management Limited,Operational Responses,5,202402,06/04/2023,P6,9106144,"-5,420.24 ","5,420.24 ",2103,Water Rates,1003,London Road,63.97 
Nottimghamshire fire and rescue service ,104256,Advanced Demand Side Management Limited,Advanced Demand Side Management Limited,Operational Responses,5,202402,06/04/2023,P6,9106144,"-5,420.24 ","5,420.24 ",2103,Water Rates,1005,Ashfield,52.54 
Nottimghamshire fire and rescue service ,104256,Advanced Demand Side Management Limited,Advanced Demand Side Management Limited,Operational Responses,5,202402,06/04/2023,P6,9106144,"-5,420.24 ","5,420.24 ",2103,Water Rates,1006,Edwinstowe,14.69 
Nottimghamshire fire and rescue service ,104256,Advanced Demand Side Management Limited,Advanced Demand Side Management Limited,Operational Responses,5,202402,06/04/2023,P6,9106144,"-5,420.24 ","5,420.24 ",2103,Water Rates,1006,Edwinstowe,30.04 
Nottimghamshire fire and rescue service ,104256,Advanced Demand Side Management Limited,Advanced Demand Side Management Limited,Operational Responses,5,202402,06/04/2023,P6,9106144,"-5,420.24 ","5,420.24 ",2103,Water Rates,1007,Warsop,17.97 
Nottimghamshire fire and rescue service ,104256,Advanced Demand Side Management Limited,Advanced Demand Side Management Limited,Operational Responses,5,202402,06/04/2023,P6,9106144,"-5,420.24 ","5,420.24 ",2103,Water Rates,1008,Worksop,126.75 
Nottimghamshire fire and rescue service ,104256,Advanced Demand Side Management Limited,Advanced Demand Side Management Limited,Operational Responses,5,202402,06/04/2023,P6,9106144,"-5,420.24 ","5,420.24 ",2103,Water Rates,1011,Misterton,5.03 
Nottimghamshire fire and rescue service ,104256,Advanced Demand Side Management Limited,Advanced Demand Side Management Limited,Operational Responses,5,202402,06/04/2023,P6,9106144,"-5,420.24 ","5,420.24 ",2103,Water Rates,1012,Retford,31.46 
Nottimghamshire fire and rescue service ,104256,Advanced Demand Side Management Limited,Advanced Demand Side Management Limited,Operational Responses,5,202402,06/04/2023,P6,9106144,"-5,420.24 ","5,420.24 ",2103,Water Rates,1013,Tuxford,79.92 
Nottimghamshire fire and rescue service ,104256,Advanced Demand Side Management Limited,Advanced Demand Side Management Limited,Operational Responses,5,202402,06/04/2023,P6,9106144,"-5,420.24 ","5,420.24 ",2103,Water Rates,1014,Southwell,17.97 
Nottimghamshire fire and rescue service ,104256,Advanced Demand Side Management Limited,Advanced Demand Side Management Limited,Operational Responses,5,202402,06/04/2023,P6,9106144,"-5,420.24 ","5,420.24 ",2103,Water Rates,1015,Collingham,21.23 
Nottimghamshire fire and rescue service ,104256,Advanced Demand Side Management Limited,Advanced Demand Side Management Limited,Operational Responses,5,202402,06/04/2023,P6,9106144,"-5,420.24 ","5,420.24 ",2103,Water Rates,1016,Newark,1.92 
Nottimghamshire fire and rescue service ,104256,Advanced Demand Side Management Limited,Advanced Demand Side Management Limited,Operational Responses,5,202402,06/04/2023,P6,9106144,"-5,420.24 ","5,420.24 ",2103,Water Rates,1017,Bingham,4.90 
Nottimghamshire fire and rescue service ,104256,Advanced Demand Side Management Limited,Advanced Demand Side Management Limited,Operational Responses,5,202402,06/04/2023,P6,9106144,"-5,420.24 ","5,420.24 ",2103,Water Rates,1020,Stockhill,5.54 
Nottimghamshire fire and rescue service ,104256,Advanced Demand Side Management Limited,Advanced Demand Side Management Limited,Operational Responses,5,202402,06/04/2023,P6,9106144,"-5,420.24 ","5,420.24 ",2103,Water Rates,1023,Stapleford,45.72 
Nottimghamshire fire and rescue service ,104256,Advanced Demand Side Management Limited,Advanced Demand Side Management Limited,Operational Responses,5,202402,06/04/2023,P6,9106144,"-5,420.24 ","5,420.24 ",2103,Water Rates,1024,Eastwood,18.98 
Nottimghamshire fire and rescue service ,104256,Advanced Demand Side Management Limited,Advanced Demand Side Management Limited,Operational Responses,5,202402,06/04/2023,P6,9106144,"-5,420.24 ","5,420.24 ",2103,Water Rates,1026,Arnold,71.85 
Nottimghamshire fire and rescue service ,104256,Advanced Demand Side Management Limited,Advanced Demand Side Management Limited,Operational Responses,5,202402,06/04/2023,P6,9106144,"-5,420.24 ","5,420.24 ",2103,Water Rates,1027,Carlton,23.88 
Nottimghamshire fire and rescue service ,104256,Advanced Demand Side Management Limited,Advanced Demand Side Management Limited,Operational Responses,5,202402,06/04/2023,P6,9106144,"-5,420.24 ","5,420.24 ",2103,Water Rates,1029,Highfields Station,286.02 
Nottimghamshire fire and rescue service ,104256,Advanced Demand Side Management Limited,Advanced Demand Side Management Limited,Management & Support Services,5,202402,06/04/2023,P6,9106144,"-5,420.24 ","5,420.24 ",2103,Water Rates,1030,Service Development Centre,927.70 
Nottimghamshire fire and rescue service ,104256,Advanced Demand Side Management Limited,Advanced Demand Side Management Limited,Management & Support Services,5,202402,06/04/2023,P6,9106144,"-5,420.24 ","5,420.24 ",2103,Water Rates,1035,Headquarters,237.04 
Nottimghamshire fire and rescue service ,104256,Advanced Demand Side Management Limited,Advanced Demand Side Management Limited,Prevention & Education,5,202402,06/04/2023,P6,9106144,"-5,420.24 ","5,420.24 ",2103,Water Rates,1036,Clifton Community Safety Centre,14.70 
Nottimghamshire fire and rescue service ,104007,Castle Water Limited,Castle Water Limited,Management & Support Services,5,202402,14/04/2023,P6,9106169,"-15,710.02 ","15,710.02 ",2103,Water Rates,1030,Service Development Centre,"9,297.61 "
Nottimghamshire fire and rescue service ,102744,EDF Energy,EDF Energy,Operational Responses,1,202402,17/05/2023,P6,9106426,"-30,684.12 ","30,684.12 ",2103,Water Rates,1003,London Road,"3,561.67 "
Nottimghamshire fire and rescue service ,102744,EDF Energy,EDF Energy,Operational Responses,1,202402,17/05/2023,P6,9106426,"-30,684.12 ","30,684.12 ",2103,Water Rates,1012,Retford,"2,765.79 "
Nottimghamshire fire and rescue service ,102744,EDF Energy,EDF Energy,Operational Responses,1,202402,17/05/2023,P6,9106426,"-30,684.12 ","30,684.12 ",2103,Water Rates,1016,Newark,"1,760.38 "
Nottimghamshire fire and rescue service ,102744,EDF Energy,EDF Energy,Operational Responses,1,202402,17/05/2023,P6,9106426,"-30,684.12 ","30,684.12 ",2103,Water Rates,1027,Carlton,"3,547.72 "
Nottimghamshire fire and rescue service ,102744,EDF Energy,EDF Energy,Operational Responses,1,202402,17/05/2023,P6,9106426,"-30,684.12 ","30,684.12 ",2103,Water Rates,1029,Highfields Station,"7,696.31 "
Nottimghamshire fire and rescue service ,102744,EDF Energy,EDF Energy,Management & Support Services,1,202402,17/05/2023,P6,9106426,"-30,684.12 ","30,684.12 ",2103,Water Rates,1030,Service Development Centre,"4,433.49 "
Nottimghamshire fire and rescue service ,102744,EDF Energy,EDF Energy,Management & Support Services,1,202402,17/05/2023,P6,9106426,"-30,684.12 ","30,684.12 ",2103,Water Rates,1035,Headquarters,"-1,577.71 "
Nottimghamshire fire and rescue service ,102744,EDF Energy,EDF Energy,Management & Support Services,1,202402,17/05/2023,P6,9106426,"-30,684.12 ","30,684.12 ",2103,Water Rates,1035,Headquarters,"1,573.04 "
Nottimghamshire fire and rescue service ,102744,EDF Energy,EDF Energy,Management & Support Services,1,202402,17/05/2023,P6,9106426,"-30,684.12 ","30,684.12 ",2103,Water Rates,1035,Headquarters,"1,809.42 "
Nottimghamshire fire and rescue service ,104007,Castle Water Limited,Castle Water Limited,Operational Responses,5,202402,13/04/2022,P6,9106364,-309.14 ,309.14 ,2104,Sewerage and Environmental,1008,Worksop,218.68 
Nottimghamshire fire and rescue service ,104007,Castle Water Limited,Castle Water Limited,Operational Responses,5,202402,06/05/2022,P6,9106366,-314.48 ,314.48 ,2104,Sewerage and Environmental,1008,Worksop,224.82 
Nottimghamshire fire and rescue service ,102276,Water Plus Limited (Payments Centre),Water Plus Limited (Payments Centre),Operational Responses,1,202402,03/05/2023,P6,9106291,-439.66 ,439.66 ,2104,Sewerage and Environmental,1008,Worksop,72.06 
Nottimghamshire fire and rescue service ,102276,Water Plus Limited (Payments Centre),Water Plus Limited (Payments Centre),Operational Responses,1,202402,03/05/2023,P6,9106291,-439.66 ,439.66 ,2104,Sewerage and Environmental,1008,Worksop,239.43 
Nottimghamshire fire and rescue service ,104007,Castle Water Limited,Castle Water Limited,Operational Responses,5,202402,15/06/2023,P6,9106365,-501.91 ,501.91 ,2104,Sewerage and Environmental,1008,Worksop,304.54 
Nottimghamshire fire and rescue service ,104007,Castle Water Limited,Castle Water Limited,Operational Responses,5,202402,07/09/2021,P6,9106290,"-1,134.10 ","1,134.10 ",2104,Sewerage and Environmental,1028,East Leake,441.86 
Nottimghamshire fire and rescue service ,104007,Castle Water Limited,Castle Water Limited,Operational Responses,5,202402,24/11/2021,P6,9106289,"-1,221.22 ","1,221.22 ",2104,Sewerage and Environmental,1010,Harworth,475.76 
Nottimghamshire fire and rescue service ,104256,Advanced Demand Side Management Limited,Advanced Demand Side Management Limited,Operational Responses,5,202402,06/04/2023,P6,9106144,"-5,420.24 ","5,420.24 ",2104,Sewerage and Environmental,1001,Mansfield,20.84 
Nottimghamshire fire and rescue service ,104256,Advanced Demand Side Management Limited,Advanced Demand Side Management Limited,Operational Responses,5,202402,06/04/2023,P6,9106144,"-5,420.24 ","5,420.24 ",2104,Sewerage and Environmental,1001,Mansfield,177.52 
Nottimghamshire fire and rescue service ,104256,Advanced Demand Side Management Limited,Advanced Demand Side Management Limited,Operational Responses,5,202402,06/04/2023,P6,9106144,"-5,420.24 ","5,420.24 ",2104,Sewerage and Environmental,1002,Blidworth,10.37 
Nottimghamshire fire and rescue service ,104256,Advanced Demand Side Management Limited,Advanced Demand Side Management Limited,Operational Responses,5,202402,06/04/2023,P6,9106144,"-5,420.24 ","5,420.24 ",2104,Sewerage and Environmental,1003,London Road,44.48 
Nottimghamshire fire and rescue service ,104256,Advanced Demand Side Management Limited,Advanced Demand Side Management Limited,Operational Responses,5,202402,06/04/2023,P6,9106144,"-5,420.24 ","5,420.24 ",2104,Sewerage and Environmental,1005,Ashfield,85.24 
Nottimghamshire fire and rescue service ,104256,Advanced Demand Side Management Limited,Advanced Demand Side Management Limited,Operational Responses,5,202402,06/04/2023,P6,9106144,"-5,420.24 ","5,420.24 ",2104,Sewerage and Environmental,1006,Edwinstowe,10.13 
Nottimghamshire fire and rescue service ,104256,Advanced Demand Side Management Limited,Advanced Demand Side Management Limited,Operational Responses,5,202402,06/04/2023,P6,9106144,"-5,420.24 ","5,420.24 ",2104,Sewerage and Environmental,1006,Edwinstowe,118.79 
Nottimghamshire fire and rescue service ,104256,Advanced Demand Side Management Limited,Advanced Demand Side Management Limited,Operational Responses,5,202402,06/04/2023,P6,9106144,"-5,420.24 ","5,420.24 ",2104,Sewerage and Environmental,1007,Warsop,12.96 
Nottimghamshire fire and rescue service ,104256,Advanced Demand Side Management Limited,Advanced Demand Side Management Limited,Operational Responses,5,202402,06/04/2023,P6,9106144,"-5,420.24 ","5,420.24 ",2104,Sewerage and Environmental,1008,Worksop,317.74 
Nottimghamshire fire and rescue service ,104256,Advanced Demand Side Management Limited,Advanced Demand Side Management Limited,Operational Responses,5,202402,06/04/2023,P6,9106144,"-5,420.24 ","5,420.24 ",2104,Sewerage and Environmental,1011,Misterton,36.85 
Nottimghamshire fire and rescue service ,104256,Advanced Demand Side Management Limited,Advanced Demand Side Management Limited,Operational Responses,5,202402,06/04/2023,P6,9106144,"-5,420.24 ","5,420.24 ",2104,Sewerage and Environmental,1012,Retford,25.34 
Nottimghamshire fire and rescue service ,104256,Advanced Demand Side Management Limited,Advanced Demand Side Management Limited,Operational Responses,5,202402,06/04/2023,P6,9106144,"-5,420.24 ","5,420.24 ",2104,Sewerage and Environmental,1012,Retford,95.24 
Nottimghamshire fire and rescue service ,104256,Advanced Demand Side Management Limited,Advanced Demand Side Management Limited,Operational Responses,5,202402,06/04/2023,P6,9106144,"-5,420.24 ","5,420.24 ",2104,Sewerage and Environmental,1013,Tuxford,159.32 
Nottimghamshire fire and rescue service ,104256,Advanced Demand Side Management Limited,Advanced Demand Side Management Limited,Operational Responses,5,202402,06/04/2023,P6,9106144,"-5,420.24 ","5,420.24 ",2104,Sewerage and Environmental,1014,Southwell,82.26 
Nottimghamshire fire and rescue service ,104256,Advanced Demand Side Management Limited,Advanced Demand Side Management Limited,Operational Responses,5,202402,06/04/2023,P6,9106144,"-5,420.24 ","5,420.24 ",2104,Sewerage and Environmental,1015,Collingham,63.85 
Nottimghamshire fire and rescue service ,104256,Advanced Demand Side Management Limited,Advanced Demand Side Management Limited,Operational Responses,5,202402,06/04/2023,P6,9106144,"-5,420.24 ","5,420.24 ",2104,Sewerage and Environmental,1016,Newark,167.39 
Nottimghamshire fire and rescue service ,104256,Advanced Demand Side Management Limited,Advanced Demand Side Management Limited,Operational Responses,5,202402,06/04/2023,P6,9106144,"-5,420.24 ","5,420.24 ",2104,Sewerage and Environmental,1017,Bingham,73.26 
Nottimghamshire fire and rescue service ,104256,Advanced Demand Side Management Limited,Advanced Demand Side Management Limited,Operational Responses,5,202402,06/04/2023,P6,9106144,"-5,420.24 ","5,420.24 ",2104,Sewerage and Environmental,1020,Stockhill,234.44 
Nottimghamshire fire and rescue service ,104256,Advanced Demand Side Management Limited,Advanced Demand Side Management Limited,Operational Responses,5,202402,06/04/2023,P6,9106144,"-5,420.24 ","5,420.24 ",2104,Sewerage and Environmental,1023,Stapleford,101.40 
Nottimghamshire fire and rescue service ,104256,Advanced Demand Side Management Limited,Advanced Demand Side Management Limited,Operational Responses,5,202402,06/04/2023,P6,9106144,"-5,420.24 ","5,420.24 ",2104,Sewerage and Environmental,1024,Eastwood,46.69 
Nottimghamshire fire and rescue service ,104256,Advanced Demand Side Management Limited,Advanced Demand Side Management Limited,Operational Responses,5,202402,06/04/2023,P6,9106144,"-5,420.24 ","5,420.24 ",2104,Sewerage and Environmental,1026,Arnold,146.93 
Nottimghamshire fire and rescue service ,104256,Advanced Demand Side Management Limited,Advanced Demand Side Management Limited,Operational Responses,5,202402,06/04/2023,P6,9106144,"-5,420.24 ","5,420.24 ",2104,Sewerage and Environmental,1027,Carlton,180.90 
Nottimghamshire fire and rescue service ,104256,Advanced Demand Side Management Limited,Advanced Demand Side Management Limited,Operational Responses,5,202402,06/04/2023,P6,9106144,"-5,420.24 ","5,420.24 ",2104,Sewerage and Environmental,1029,Highfields Station,197.60 
Nottimghamshire fire and rescue service ,104256,Advanced Demand Side Management Limited,Advanced Demand Side Management Limited,Management & Support Services,5,202402,06/04/2023,P6,9106144,"-5,420.24 ","5,420.24 ",2104,Sewerage and Environmental,1030,Service Development Centre,640.06 
Nottimghamshire fire and rescue service ,104256,Advanced Demand Side Management Limited,Advanced Demand Side Management Limited,Management & Support Services,5,202402,06/04/2023,P6,9106144,"-5,420.24 ","5,420.24 ",2104,Sewerage and Environmental,1035,Headquarters,163.82 
Nottimghamshire fire and rescue service ,104256,Advanced Demand Side Management Limited,Advanced Demand Side Management Limited,Prevention & Education,5,202402,06/04/2023,P6,9106144,"-5,420.24 ","5,420.24 ",2104,Sewerage and Environmental,1036,Clifton Community Safety Centre,59.35 
Nottimghamshire fire and rescue service ,104007,Castle Water Limited,Castle Water Limited,Management & Support Services,5,202402,14/04/2023,P6,9106169,"-15,710.02 ","15,710.02 ",2104,Sewerage and Environmental,1030,Service Development Centre,"6,412.41 "
Nottimghamshire fire and rescue service ,101512,Frank Key Group Merchants (Nottingham) Ltd,Frank Key Group Merchants (Nottingham) Ltd,Management & Support Services,1,202402,28/02/2023,P6,9106337,-282.00 ,282.00 ,2106,Refuse / Trade Waste Collection,1035,Headquarters,235.00 
Nottimghamshire fire and rescue service ,100557,NCC Sundry Debtors,NCC Sundry Debtors,Operational Responses,4,202402,18/05/2023,P6,9106404,"-3,850.34 ","3,850.34 ",2201,Grounds Maintenance,1001,Mansfield,76.20 
Nottimghamshire fire and rescue service ,100557,NCC Sundry Debtors,NCC Sundry Debtors,Operational Responses,4,202402,18/05/2023,P6,9106404,"-3,850.34 ","3,850.34 ",2201,Grounds Maintenance,1002,Blidworth,135.68 
Nottimghamshire fire and rescue service ,100557,NCC Sundry Debtors,NCC Sundry Debtors,Operational Responses,4,202402,18/05/2023,P6,9106404,"-3,850.34 ","3,850.34 ",2201,Grounds Maintenance,1003,London Road,92.50 
Nottimghamshire fire and rescue service ,100557,NCC Sundry Debtors,NCC Sundry Debtors,Operational Responses,4,202402,18/05/2023,P6,9106404,"-3,850.34 ","3,850.34 ",2201,Grounds Maintenance,1005,Ashfield,437.50 
Nottimghamshire fire and rescue service ,100557,NCC Sundry Debtors,NCC Sundry Debtors,Operational Responses,4,202402,18/05/2023,P6,9106404,"-3,850.34 ","3,850.34 ",2201,Grounds Maintenance,1006,Edwinstowe,90.56 
Nottimghamshire fire and rescue service ,100557,NCC Sundry Debtors,NCC Sundry Debtors,Operational Responses,4,202402,18/05/2023,P6,9106404,"-3,850.34 ","3,850.34 ",2201,Grounds Maintenance,1007,Warsop,15.00 
Nottimghamshire fire and rescue service ,100557,NCC Sundry Debtors,NCC Sundry Debtors,Operational Responses,4,202402,18/05/2023,P6,9106404,"-3,850.34 ","3,850.34 ",2201,Grounds Maintenance,1010,Harworth,88.50 
Nottimghamshire fire and rescue service ,100557,NCC Sundry Debtors,NCC Sundry Debtors,Operational Responses,4,202402,18/05/2023,P6,9106404,"-3,850.34 ","3,850.34 ",2201,Grounds Maintenance,1011,Misterton,79.00 
Nottimghamshire fire and rescue service ,100557,NCC Sundry Debtors,NCC Sundry Debtors,Operational Responses,4,202402,18/05/2023,P6,9106404,"-3,850.34 ","3,850.34 ",2201,Grounds Maintenance,1012,Retford,53.52 
Nottimghamshire fire and rescue service ,100557,NCC Sundry Debtors,NCC Sundry Debtors,Operational Responses,4,202402,18/05/2023,P6,9106404,"-3,850.34 ","3,850.34 ",2201,Grounds Maintenance,1013,Tuxford,60.00 
Nottimghamshire fire and rescue service ,100557,NCC Sundry Debtors,NCC Sundry Debtors,Operational Responses,4,202402,18/05/2023,P6,9106404,"-3,850.34 ","3,850.34 ",2201,Grounds Maintenance,1014,Southwell,72.26 
Nottimghamshire fire and rescue service ,100557,NCC Sundry Debtors,NCC Sundry Debtors,Operational Responses,4,202402,18/05/2023,P6,9106404,"-3,850.34 ","3,850.34 ",2201,Grounds Maintenance,1015,Collingham,81.60 
Nottimghamshire fire and rescue service ,100557,NCC Sundry Debtors,NCC Sundry Debtors,Operational Responses,4,202402,18/05/2023,P6,9106404,"-3,850.34 ","3,850.34 ",2201,Grounds Maintenance,1016,Newark,80.00 
Nottimghamshire fire and rescue service ,100557,NCC Sundry Debtors,NCC Sundry Debtors,Operational Responses,4,202402,18/05/2023,P6,9106404,"-3,850.34 ","3,850.34 ",2201,Grounds Maintenance,1017,Bingham,128.16 
Nottimghamshire fire and rescue service ,100557,NCC Sundry Debtors,NCC Sundry Debtors,Operational Responses,4,202402,18/05/2023,P6,9106404,"-3,850.34 ","3,850.34 ",2201,Grounds Maintenance,1019,West Bridgford,168.96 
Nottimghamshire fire and rescue service ,100557,NCC Sundry Debtors,NCC Sundry Debtors,Operational Responses,4,202402,18/05/2023,P6,9106404,"-3,850.34 ","3,850.34 ",2201,Grounds Maintenance,1020,Stockhill,432.20 
Nottimghamshire fire and rescue service ,100557,NCC Sundry Debtors,NCC Sundry Debtors,Operational Responses,4,202402,18/05/2023,P6,9106404,"-3,850.34 ","3,850.34 ",2201,Grounds Maintenance,1023,Stapleford,161.00 
Nottimghamshire fire and rescue service ,100557,NCC Sundry Debtors,NCC Sundry Debtors,Operational Responses,4,202402,18/05/2023,P6,9106404,"-3,850.34 ","3,850.34 ",2201,Grounds Maintenance,1024,Eastwood,57.50 
Nottimghamshire fire and rescue service ,100557,NCC Sundry Debtors,NCC Sundry Debtors,Operational Responses,4,202402,18/05/2023,P6,9106404,"-3,850.34 ","3,850.34 ",2201,Grounds Maintenance,1026,Arnold,44.16 
Nottimghamshire fire and rescue service ,100557,NCC Sundry Debtors,NCC Sundry Debtors,Operational Responses,4,202402,18/05/2023,P6,9106404,"-3,850.34 ","3,850.34 ",2201,Grounds Maintenance,1027,Carlton,79.16 
Nottimghamshire fire and rescue service ,100557,NCC Sundry Debtors,NCC Sundry Debtors,Operational Responses,4,202402,18/05/2023,P6,9106404,"-3,850.34 ","3,850.34 ",2201,Grounds Maintenance,1028,East Leake,267.50 
Nottimghamshire fire and rescue service ,100557,NCC Sundry Debtors,NCC Sundry Debtors,Operational Responses,4,202402,18/05/2023,P6,9106404,"-3,850.34 ","3,850.34 ",2201,Grounds Maintenance,1029,Highfields Station,194.16 
Nottimghamshire fire and rescue service ,100557,NCC Sundry Debtors,NCC Sundry Debtors,Management & Support Services,4,202402,18/05/2023,P6,9106404,"-3,850.34 ","3,850.34 ",2201,Grounds Maintenance,1030,Service Development Centre,313.50 
Nottimghamshire fire and rescue service ,100357,Eastern Shires Purchasing Organisation,Eastern Shires Purchasing Organisation,Operational Responses,1,202402,16/05/2023,P6,9106455,-328.20 ,328.20 ,2202,Fixtures & Fittings,1006,Edwinstowe,273.50 
Nottimghamshire fire and rescue service ,103337,Falcon Environmental Limited,Falcon Environmental Limited,Operational Responses,5,202402,12/05/2023,P6,9106318,-336.00 ,336.00 ,2204,Contract Cleaning,1029,Highfields Station,280.00 
Nottimghamshire fire and rescue service ,103337,Falcon Environmental Limited,Falcon Environmental Limited,Management & Support Services,5,202402,19/05/2023,P6,9106485,-336.00 ,336.00 ,2204,Contract Cleaning,2087,Estates Department (Previously Premises),280.00 
Nottimghamshire fire and rescue service ,100557,NCC Sundry Debtors,NCC Sundry Debtors,Operational Responses,4,202402,11/05/2023,P6,9106311,"-1,728.00 ","1,728.00 ",2204,Contract Cleaning,1001,Mansfield,60.00 
Nottimghamshire fire and rescue service ,100557,NCC Sundry Debtors,NCC Sundry Debtors,Operational Responses,4,202402,11/05/2023,P6,9106311,"-1,728.00 ","1,728.00 ",2204,Contract Cleaning,1002,Blidworth,60.00 
Nottimghamshire fire and rescue service ,100557,NCC Sundry Debtors,NCC Sundry Debtors,Operational Responses,4,202402,11/05/2023,P6,9106311,"-1,728.00 ","1,728.00 ",2204,Contract Cleaning,1003,London Road,60.00 
Nottimghamshire fire and rescue service ,100557,NCC Sundry Debtors,NCC Sundry Debtors,Operational Responses,4,202402,11/05/2023,P6,9106311,"-1,728.00 ","1,728.00 ",2204,Contract Cleaning,1005,Ashfield,60.00 
Nottimghamshire fire and rescue service ,100557,NCC Sundry Debtors,NCC Sundry Debtors,Operational Responses,4,202402,11/05/2023,P6,9106311,"-1,728.00 ","1,728.00 ",2204,Contract Cleaning,1006,Edwinstowe,60.00 
Nottimghamshire fire and rescue service ,100557,NCC Sundry Debtors,NCC Sundry Debtors,Operational Responses,4,202402,11/05/2023,P6,9106311,"-1,728.00 ","1,728.00 ",2204,Contract Cleaning,1007,Warsop,60.00 
Nottimghamshire fire and rescue service ,100557,NCC Sundry Debtors,NCC Sundry Debtors,Operational Responses,4,202402,11/05/2023,P6,9106311,"-1,728.00 ","1,728.00 ",2204,Contract Cleaning,1008,Worksop,60.00 
Nottimghamshire fire and rescue service ,100557,NCC Sundry Debtors,NCC Sundry Debtors,Operational Responses,4,202402,11/05/2023,P6,9106311,"-1,728.00 ","1,728.00 ",2204,Contract Cleaning,1010,Harworth,60.00 
Nottimghamshire fire and rescue service ,100557,NCC Sundry Debtors,NCC Sundry Debtors,Operational Responses,4,202402,11/05/2023,P6,9106311,"-1,728.00 ","1,728.00 ",2204,Contract Cleaning,1011,Misterton,60.00 
Nottimghamshire fire and rescue service ,100557,NCC Sundry Debtors,NCC Sundry Debtors,Operational Responses,4,202402,11/05/2023,P6,9106311,"-1,728.00 ","1,728.00 ",2204,Contract Cleaning,1012,Retford,60.00 
Nottimghamshire fire and rescue service ,100557,NCC Sundry Debtors,NCC Sundry Debtors,Operational Responses,4,202402,11/05/2023,P6,9106311,"-1,728.00 ","1,728.00 ",2204,Contract Cleaning,1013,Tuxford,60.00 
Nottimghamshire fire and rescue service ,100557,NCC Sundry Debtors,NCC Sundry Debtors,Operational Responses,4,202402,11/05/2023,P6,9106311,"-1,728.00 ","1,728.00 ",2204,Contract Cleaning,1014,Southwell,60.00 
Nottimghamshire fire and rescue service ,100557,NCC Sundry Debtors,NCC Sundry Debtors,Operational Responses,4,202402,11/05/2023,P6,9106311,"-1,728.00 ","1,728.00 ",2204,Contract Cleaning,1015,Collingham,60.00 
Nottimghamshire fire and rescue service ,100557,NCC Sundry Debtors,NCC Sundry Debtors,Operational Responses,4,202402,11/05/2023,P6,9106311,"-1,728.00 ","1,728.00 ",2204,Contract Cleaning,1016,Newark,60.00 
Nottimghamshire fire and rescue service ,100557,NCC Sundry Debtors,NCC Sundry Debtors,Operational Responses,4,202402,11/05/2023,P6,9106311,"-1,728.00 ","1,728.00 ",2204,Contract Cleaning,1017,Bingham,60.00 
Nottimghamshire fire and rescue service ,100557,NCC Sundry Debtors,NCC Sundry Debtors,Operational Responses,4,202402,11/05/2023,P6,9106311,"-1,728.00 ","1,728.00 ",2204,Contract Cleaning,1019,West Bridgford,60.00 
Nottimghamshire fire and rescue service ,100557,NCC Sundry Debtors,NCC Sundry Debtors,Operational Responses,4,202402,11/05/2023,P6,9106311,"-1,728.00 ","1,728.00 ",2204,Contract Cleaning,1020,Stockhill,60.00 
Nottimghamshire fire and rescue service ,100557,NCC Sundry Debtors,NCC Sundry Debtors,Operational Responses,4,202402,11/05/2023,P6,9106311,"-1,728.00 ","1,728.00 ",2204,Contract Cleaning,1023,Stapleford,60.00 
Nottimghamshire fire and rescue service ,100557,NCC Sundry Debtors,NCC Sundry Debtors,Operational Responses,4,202402,11/05/2023,P6,9106311,"-1,728.00 ","1,728.00 ",2204,Contract Cleaning,1024,Eastwood,60.00 
Nottimghamshire fire and rescue service ,100557,NCC Sundry Debtors,NCC Sundry Debtors,Operational Responses,4,202402,11/05/2023,P6,9106311,"-1,728.00 ","1,728.00 ",2204,Contract Cleaning,1026,Arnold,60.00 
Nottimghamshire fire and rescue service ,100557,NCC Sundry Debtors,NCC Sundry Debtors,Operational Responses,4,202402,11/05/2023,P6,9106311,"-1,728.00 ","1,728.00 ",2204,Contract Cleaning,1027,Carlton,60.00 
Nottimghamshire fire and rescue service ,100557,NCC Sundry Debtors,NCC Sundry Debtors,Operational Responses,4,202402,11/05/2023,P6,9106311,"-1,728.00 ","1,728.00 ",2204,Contract Cleaning,1028,East Leake,60.00 
Nottimghamshire fire and rescue service ,100557,NCC Sundry Debtors,NCC Sundry Debtors,Operational Responses,4,202402,11/05/2023,P6,9106311,"-1,728.00 ","1,728.00 ",2204,Contract Cleaning,1029,Highfields Station,60.00 
Nottimghamshire fire and rescue service ,100557,NCC Sundry Debtors,NCC Sundry Debtors,Management & Support Services,4,202402,11/05/2023,P6,9106311,"-1,728.00 ","1,728.00 ",2204,Contract Cleaning,1030,Service Development Centre,60.00 
Nottimghamshire fire and rescue service ,100557,NCC Sundry Debtors,NCC Sundry Debtors,Operational Responses,4,202402,11/05/2023,P6,9106312,"-79,567.39 ","79,567.39 ",2204,Contract Cleaning,1001,Mansfield,"5,690.34 "
Nottimghamshire fire and rescue service ,100557,NCC Sundry Debtors,NCC Sundry Debtors,Operational Responses,4,202402,11/05/2023,P6,9106312,"-79,567.39 ","79,567.39 ",2204,Contract Cleaning,1002,Blidworth,537.54 
Nottimghamshire fire and rescue service ,100557,NCC Sundry Debtors,NCC Sundry Debtors,Operational Responses,4,202402,11/05/2023,P6,9106312,"-79,567.39 ","79,567.39 ",2204,Contract Cleaning,1003,London Road,"6,075.08 "
Nottimghamshire fire and rescue service ,100557,NCC Sundry Debtors,NCC Sundry Debtors,Operational Responses,4,202402,11/05/2023,P6,9106312,"-79,567.39 ","79,567.39 ",2204,Contract Cleaning,1005,Ashfield,"2,997.08 "
Nottimghamshire fire and rescue service ,100557,NCC Sundry Debtors,NCC Sundry Debtors,Operational Responses,4,202402,11/05/2023,P6,9106312,"-79,567.39 ","79,567.39 ",2204,Contract Cleaning,1006,Edwinstowe,"2,304.54 "
Nottimghamshire fire and rescue service ,100557,NCC Sundry Debtors,NCC Sundry Debtors,Operational Responses,4,202402,11/05/2023,P6,9106312,"-79,567.39 ","79,567.39 ",2204,Contract Cleaning,1007,Warsop,460.58 
Nottimghamshire fire and rescue service ,100557,NCC Sundry Debtors,NCC Sundry Debtors,Operational Responses,4,202402,11/05/2023,P6,9106312,"-79,567.39 ","79,567.39 ",2204,Contract Cleaning,1008,Worksop,"3,766.58 "
Nottimghamshire fire and rescue service ,100557,NCC Sundry Debtors,NCC Sundry Debtors,Operational Responses,4,202402,11/05/2023,P6,9106312,"-79,567.39 ","79,567.39 ",2204,Contract Cleaning,1010,Harworth,845.34 
Nottimghamshire fire and rescue service ,100557,NCC Sundry Debtors,NCC Sundry Debtors,Operational Responses,4,202402,11/05/2023,P6,9106312,"-79,567.39 ","79,567.39 ",2204,Contract Cleaning,1011,Misterton,691.44 
Nottimghamshire fire and rescue service ,100557,NCC Sundry Debtors,NCC Sundry Debtors,Operational Responses,4,202402,11/05/2023,P6,9106312,"-79,567.39 ","79,567.39 ",2204,Contract Cleaning,1012,Retford,"3,843.54 "
Nottimghamshire fire and rescue service ,100557,NCC Sundry Debtors,NCC Sundry Debtors,Operational Responses,4,202402,11/05/2023,P6,9106312,"-79,567.39 ","79,567.39 ",2204,Contract Cleaning,1013,Tuxford,537.54 
Nottimghamshire fire and rescue service ,100557,NCC Sundry Debtors,NCC Sundry Debtors,Operational Responses,4,202402,11/05/2023,P6,9106312,"-79,567.39 ","79,567.39 ",2204,Contract Cleaning,1014,Southwell,768.38 
Nottimghamshire fire and rescue service ,100557,NCC Sundry Debtors,NCC Sundry Debtors,Operational Responses,4,202402,11/05/2023,P6,9106312,"-79,567.39 ","79,567.39 ",2204,Contract Cleaning,1015,Collingham,768.38 
Nottimghamshire fire and rescue service ,100557,NCC Sundry Debtors,NCC Sundry Debtors,Operational Responses,4,202402,11/05/2023,P6,9106312,"-79,567.39 ","79,567.39 ",2204,Contract Cleaning,1016,Newark,"2,997.08 "
Nottimghamshire fire and rescue service ,100557,NCC Sundry Debtors,NCC Sundry Debtors,Operational Responses,4,202402,11/05/2023,P6,9106312,"-79,567.39 ","79,567.39 ",2204,Contract Cleaning,1017,Bingham,537.54 
Nottimghamshire fire and rescue service ,100557,NCC Sundry Debtors,NCC Sundry Debtors,Operational Responses,4,202402,11/05/2023,P6,9106312,"-79,567.39 ","79,567.39 ",2204,Contract Cleaning,1019,West Bridgford,"4,613.04 "
Nottimghamshire fire and rescue service ,100557,NCC Sundry Debtors,NCC Sundry Debtors,Operational Responses,4,202402,11/05/2023,P6,9106312,"-79,567.39 ","79,567.39 ",2204,Contract Cleaning,1020,Stockhill,"3,766.58 "
Nottimghamshire fire and rescue service ,100557,NCC Sundry Debtors,NCC Sundry Debtors,Operational Responses,4,202402,11/05/2023,P6,9106312,"-79,567.39 ","79,567.39 ",2204,Contract Cleaning,1023,Stapleford,"1,230.08 "
Nottimghamshire fire and rescue service ,100557,NCC Sundry Debtors,NCC Sundry Debtors,Operational Responses,4,202402,11/05/2023,P6,9106312,"-79,567.39 ","79,567.39 ",2204,Contract Cleaning,1024,Eastwood,845.34 
Nottimghamshire fire and rescue service ,100557,NCC Sundry Debtors,NCC Sundry Debtors,Operational Responses,4,202402,11/05/2023,P6,9106312,"-79,567.39 ","79,567.39 ",2204,Contract Cleaning,1026,Arnold,"2,804.70 "
Nottimghamshire fire and rescue service ,100557,NCC Sundry Debtors,NCC Sundry Debtors,Operational Responses,4,202402,11/05/2023,P6,9106312,"-79,567.39 ","79,567.39 ",2204,Contract Cleaning,1027,Carlton,"5,305.58 "
Nottimghamshire fire and rescue service ,100557,NCC Sundry Debtors,NCC Sundry Debtors,Operational Responses,4,202402,11/05/2023,P6,9106312,"-79,567.39 ","79,567.39 ",2204,Contract Cleaning,1028,East Leake,537.54 
Nottimghamshire fire and rescue service ,100557,NCC Sundry Debtors,NCC Sundry Debtors,Operational Responses,4,202402,11/05/2023,P6,9106312,"-79,567.39 ","79,567.39 ",2204,Contract Cleaning,1029,Highfields Station,"10,151.18 "
Nottimghamshire fire and rescue service ,100557,NCC Sundry Debtors,NCC Sundry Debtors,Management & Support Services,4,202402,11/05/2023,P6,9106312,"-79,567.39 ","79,567.39 ",2204,Contract Cleaning,1030,Service Development Centre,"4,231.14 "
Nottimghamshire fire and rescue service ,100557,NCC Sundry Debtors,NCC Sundry Debtors,Operational Responses,4,202402,11/05/2023,P6,9106308,"-1,696.01 ","1,696.01 ",2205,Window Cleaning,1001,Mansfield,100.00 
Nottimghamshire fire and rescue service ,100557,NCC Sundry Debtors,NCC Sundry Debtors,Operational Responses,4,202402,11/05/2023,P6,9106308,"-1,696.01 ","1,696.01 ",2205,Window Cleaning,1002,Blidworth,40.00 
Nottimghamshire fire and rescue service ,100557,NCC Sundry Debtors,NCC Sundry Debtors,Operational Responses,4,202402,11/05/2023,P6,9106308,"-1,696.01 ","1,696.01 ",2205,Window Cleaning,1003,London Road,83.34 
Nottimghamshire fire and rescue service ,100557,NCC Sundry Debtors,NCC Sundry Debtors,Operational Responses,4,202402,11/05/2023,P6,9106308,"-1,696.01 ","1,696.01 ",2205,Window Cleaning,1005,Ashfield,66.66 
Nottimghamshire fire and rescue service ,100557,NCC Sundry Debtors,NCC Sundry Debtors,Operational Responses,4,202402,11/05/2023,P6,9106308,"-1,696.01 ","1,696.01 ",2205,Window Cleaning,1006,Edwinstowe,66.66 
Nottimghamshire fire and rescue service ,100557,NCC Sundry Debtors,NCC Sundry Debtors,Operational Responses,4,202402,11/05/2023,P6,9106308,"-1,696.01 ","1,696.01 ",2205,Window Cleaning,1007,Warsop,43.34 
Nottimghamshire fire and rescue service ,100557,NCC Sundry Debtors,NCC Sundry Debtors,Operational Responses,4,202402,11/05/2023,P6,9106308,"-1,696.01 ","1,696.01 ",2205,Window Cleaning,1008,Worksop,40.00 
Nottimghamshire fire and rescue service ,100557,NCC Sundry Debtors,NCC Sundry Debtors,Operational Responses,4,202402,11/05/2023,P6,9106308,"-1,696.01 ","1,696.01 ",2205,Window Cleaning,1010,Harworth,43.34 
Nottimghamshire fire and rescue service ,100557,NCC Sundry Debtors,NCC Sundry Debtors,Operational Responses,4,202402,11/05/2023,P6,9106308,"-1,696.01 ","1,696.01 ",2205,Window Cleaning,1011,Misterton,40.00 
Nottimghamshire fire and rescue service ,100557,NCC Sundry Debtors,NCC Sundry Debtors,Operational Responses,4,202402,11/05/2023,P6,9106308,"-1,696.01 ","1,696.01 ",2205,Window Cleaning,1012,Retford,100.00 
Nottimghamshire fire and rescue service ,100557,NCC Sundry Debtors,NCC Sundry Debtors,Operational Responses,4,202402,11/05/2023,P6,9106308,"-1,696.01 ","1,696.01 ",2205,Window Cleaning,1013,Tuxford,36.66 
Nottimghamshire fire and rescue service ,100557,NCC Sundry Debtors,NCC Sundry Debtors,Operational Responses,4,202402,11/05/2023,P6,9106308,"-1,696.01 ","1,696.01 ",2205,Window Cleaning,1014,Southwell,33.34 
Nottimghamshire fire and rescue service ,100557,NCC Sundry Debtors,NCC Sundry Debtors,Operational Responses,4,202402,11/05/2023,P6,9106308,"-1,696.01 ","1,696.01 ",2205,Window Cleaning,1015,Collingham,36.66 
Nottimghamshire fire and rescue service ,100557,NCC Sundry Debtors,NCC Sundry Debtors,Operational Responses,4,202402,11/05/2023,P6,9106308,"-1,696.01 ","1,696.01 ",2205,Window Cleaning,1016,Newark,50.00 
Nottimghamshire fire and rescue service ,100557,NCC Sundry Debtors,NCC Sundry Debtors,Operational Responses,4,202402,11/05/2023,P6,9106308,"-1,696.01 ","1,696.01 ",2205,Window Cleaning,1017,Bingham,33.34 
Nottimghamshire fire and rescue service ,100557,NCC Sundry Debtors,NCC Sundry Debtors,Operational Responses,4,202402,11/05/2023,P6,9106308,"-1,696.01 ","1,696.01 ",2205,Window Cleaning,1019,West Bridgford,100.00 
Nottimghamshire fire and rescue service ,100557,NCC Sundry Debtors,NCC Sundry Debtors,Operational Responses,4,202402,11/05/2023,P6,9106308,"-1,696.01 ","1,696.01 ",2205,Window Cleaning,1020,Stockhill,100.00 
Nottimghamshire fire and rescue service ,100557,NCC Sundry Debtors,NCC Sundry Debtors,Operational Responses,4,202402,11/05/2023,P6,9106308,"-1,696.01 ","1,696.01 ",2205,Window Cleaning,1023,Stapleford,36.66 
Nottimghamshire fire and rescue service ,100557,NCC Sundry Debtors,NCC Sundry Debtors,Operational Responses,4,202402,11/05/2023,P6,9106308,"-1,696.01 ","1,696.01 ",2205,Window Cleaning,1024,Eastwood,40.00 
Nottimghamshire fire and rescue service ,100557,NCC Sundry Debtors,NCC Sundry Debtors,Operational Responses,4,202402,11/05/2023,P6,9106308,"-1,696.01 ","1,696.01 ",2205,Window Cleaning,1026,Arnold,50.00 
Nottimghamshire fire and rescue service ,100557,NCC Sundry Debtors,NCC Sundry Debtors,Operational Responses,4,202402,11/05/2023,P6,9106308,"-1,696.01 ","1,696.01 ",2205,Window Cleaning,1027,Carlton,66.66 
Nottimghamshire fire and rescue service ,100557,NCC Sundry Debtors,NCC Sundry Debtors,Operational Responses,4,202402,11/05/2023,P6,9106308,"-1,696.01 ","1,696.01 ",2205,Window Cleaning,1028,East Leake,33.34 
Nottimghamshire fire and rescue service ,100557,NCC Sundry Debtors,NCC Sundry Debtors,Operational Responses,4,202402,11/05/2023,P6,9106308,"-1,696.01 ","1,696.01 ",2205,Window Cleaning,1029,Highfields Station,133.34 
Nottimghamshire fire and rescue service ,100557,NCC Sundry Debtors,NCC Sundry Debtors,Management & Support Services,4,202402,11/05/2023,P6,9106308,"-1,696.01 ","1,696.01 ",2205,Window Cleaning,1030,Service Development Centre,40.00 
Nottimghamshire fire and rescue service ,100856,Arthur J Gallagher,Arthur J Gallagher,Management & Support Services,1,202402,06/04/2023,P6,9106475,"-26,160.25 ","26,160.25 ",2890,Insurance - Premises,2063,Risk Management & Insurance,"26,160.25 "
Nottimghamshire fire and rescue service ,103772,E P Barrus Ltd,E P Barrus Ltd,Management & Support Services,5,202402,18/05/2023,P6,9106499,-390.00 ,390.00 ,3002,Purchase of Vehicle Equipment,2084,Engineering,325.00 
Nottimghamshire fire and rescue service ,103772,E P Barrus Ltd,E P Barrus Ltd,Management & Support Services,5,202402,16/03/2023,P6,9106247,"-5,956.67 ","5,956.67 ",3002,Purchase of Vehicle Equipment,2084,Engineering,65.00 
Nottimghamshire fire and rescue service ,103772,E P Barrus Ltd,E P Barrus Ltd,Management & Support Services,5,202402,16/03/2023,P6,9106247,"-5,956.67 ","5,956.67 ",3002,Purchase of Vehicle Equipment,2084,Engineering,"3,898.89 "
Nottimghamshire fire and rescue service ,103820,VIA East Midlands Ltd,VIA East Midlands Ltd,Management & Support Services,5,202402,18/05/2023,P6,9106494,"-3,237.89 ","3,237.89 ",3100,Fleet Maintenance - Planned,2084,Engineering,"2,698.24 "
Nottimghamshire fire and rescue service ,103820,VIA East Midlands Ltd,VIA East Midlands Ltd,Management & Support Services,5,202402,26/04/2023,P6,9106212,"-4,304.25 ","4,304.25 ",3100,Fleet Maintenance - Planned,2084,Engineering,"3,596.26 "
Nottimghamshire fire and rescue service ,103820,VIA East Midlands Ltd,VIA East Midlands Ltd,Management & Support Services,5,202402,11/05/2023,P6,9106492,"-14,933.60 ","14,933.60 ",3100,Fleet Maintenance - Planned,2084,Engineering,"12,444.67 "
Nottimghamshire fire and rescue service ,103820,VIA East Midlands Ltd,VIA East Midlands Ltd,Management & Support Services,5,202402,26/04/2023,P6,9106211,"-21,085.49 ","21,085.49 ",3100,Fleet Maintenance - Planned,2084,Engineering,"17,597.89 "
Nottimghamshire fire and rescue service ,102364,Woodway Engineering Limited,Woodway Engineering Limited,Management & Support Services,1,202402,25/04/2023,P6,9106183,-343.64 ,343.64 ,3101,Fleet Modification,2084,Engineering,286.37 
Nottimghamshire fire and rescue service ,102364,Woodway Engineering Limited,Woodway Engineering Limited,Management & Support Services,1,202402,25/04/2023,P6,9106184,-570.00 ,570.00 ,3101,Fleet Modification,2084,Engineering,475.00 
Nottimghamshire fire and rescue service ,102228,Keltruck Limited,Keltruck Limited,Management & Support Services,1,202402,30/05/2023,P6,9106526,-261.06 ,261.06 ,3102,Vehicle Maintenance Outsourced,2084,Engineering,217.55 
Nottimghamshire fire and rescue service ,102228,Keltruck Limited,Keltruck Limited,Management & Support Services,1,202402,16/05/2023,P6,9106458,-576.00 ,576.00 ,3102,Vehicle Maintenance Outsourced,2084,Engineering,480.00 
Nottimghamshire fire and rescue service ,102228,Keltruck Limited,Keltruck Limited,Management & Support Services,1,202402,17/05/2023,P6,9106389,"-1,495.20 ","1,495.20 ",3102,Vehicle Maintenance Outsourced,2084,Engineering,"1,246.00 "
Nottimghamshire fire and rescue service ,103045,Mitchell Diesel Limited,Mitchell Diesel Limited,Management & Support Services,5,202402,10/05/2023,P6,9106280,"-3,741.94 ","3,741.94 ",3102,Vehicle Maintenance Outsourced,2084,Engineering,"3,118.28 "
Nottimghamshire fire and rescue service ,102951,Logistics UK,Logistics UK,Management & Support Services,5,202402,24/05/2023,P6,9106507,"-2,020.13 ","2,020.13 ",3103,Fleet Maintenance - Unplanned,2084,Engineering,"1,683.44 "
Nottimghamshire fire and rescue service ,103820,VIA East Midlands Ltd,VIA East Midlands Ltd,Management & Support Services,5,202402,26/04/2023,P6,9106210,"-16,693.25 ","16,693.25 ",3103,Fleet Maintenance - Unplanned,2084,Engineering,"13,911.04 "
Nottimghamshire fire and rescue service ,103820,VIA East Midlands Ltd,VIA East Midlands Ltd,Management & Support Services,5,202402,26/04/2023,P6,9106208,"-21,192.53 ","21,192.53 ",3103,Fleet Maintenance - Unplanned,2084,Engineering,"17,660.44 "
Nottimghamshire fire and rescue service ,103820,VIA East Midlands Ltd,VIA East Midlands Ltd,Management & Support Services,5,202402,26/04/2023,P6,9106207,"-28,139.90 ","28,139.90 ",3103,Fleet Maintenance - Unplanned,2084,Engineering,"23,449.92 "
Nottimghamshire fire and rescue service ,103820,VIA East Midlands Ltd,VIA East Midlands Ltd,Management & Support Services,5,202402,11/05/2023,P6,9106493,"-56,676.04 ","56,676.04 ",3103,Fleet Maintenance - Unplanned,2084,Engineering,"47,230.03 "
Nottimghamshire fire and rescue service ,103820,VIA East Midlands Ltd,VIA East Midlands Ltd,Management & Support Services,5,202402,26/04/2023,P6,9106205,-336.53 ,336.53 ,3104,Fleet - Accident Repairs,2084,Engineering,280.44 
Nottimghamshire fire and rescue service ,103820,VIA East Midlands Ltd,VIA East Midlands Ltd,Management & Support Services,5,202402,26/04/2023,P6,9106213,-490.69 ,490.69 ,3104,Fleet - Accident Repairs,2084,Engineering,408.91 
Nottimghamshire fire and rescue service ,103820,VIA East Midlands Ltd,VIA East Midlands Ltd,Management & Support Services,5,202402,18/05/2023,P6,9106537,-528.30 ,528.30 ,3104,Fleet - Accident Repairs,2084,Engineering,440.25 
Nottimghamshire fire and rescue service ,103820,VIA East Midlands Ltd,VIA East Midlands Ltd,Management & Support Services,5,202402,11/05/2023,P6,9106491,-996.60 ,996.60 ,3104,Fleet - Accident Repairs,2084,Engineering,830.50 
Nottimghamshire fire and rescue service ,103820,VIA East Midlands Ltd,VIA East Midlands Ltd,Management & Support Services,5,202402,26/04/2023,P6,9106206,"-1,101.61 ","1,101.61 ",3104,Fleet - Accident Repairs,2084,Engineering,918.01 
Nottimghamshire fire and rescue service ,103766,CERTAS,CERTAS,Operational Responses,5,202402,04/05/2023,P6,9106276,"-9,279.48 ","9,279.48 ",3200,Fuel - Vehicle,1016,Newark,"7,732.90 "
Nottimghamshire fire and rescue service ,103766,CERTAS,CERTAS,Operational Responses,5,202402,25/05/2023,P6,9106541,"-10,319.70 ","10,319.70 ",3200,Fuel - Vehicle,1001,Mansfield,"8,599.75 "
Nottimghamshire fire and rescue service ,103766,CERTAS,CERTAS,Operational Responses,5,202402,25/05/2023,P6,9106514,"-10,378.61 ","10,378.61 ",3200,Fuel - Vehicle,1029,Highfields Station,"8,648.84 "
Nottimghamshire fire and rescue service ,103766,CERTAS,CERTAS,Operational Responses,5,202402,25/05/2023,P6,9106532,"-11,024.44 ","11,024.44 ",3200,Fuel - Vehicle,1012,Retford,"9,187.03 "
Nottimghamshire fire and rescue service ,102558,Merridale Ltd,Merridale Ltd,Management & Support Services,1,202402,10/05/2023,P6,9106275,"-18,317.76 ","18,317.76 ",3200,Fuel - Vehicle,2084,Engineering,"15,264.80 "
Nottimghamshire fire and rescue service ,103942,The Lodge Tyre Co. Limited,The Lodge Tyre Co. Limited,Management & Support Services,5,202402,29/04/2023,P6,9106203,"-3,369.74 ","3,369.74 ",3202,Tyres,2084,Engineering,"2,808.15 "
Nottimghamshire fire and rescue service ,100321,Drivercheck Ltd,Drivercheck Ltd,Management & Support Services,1,202402,30/04/2023,P6,9106263,-633.60 ,633.60 ,3203,Motor Tax / Licenses,2084,Engineering,528.00 
Nottimghamshire fire and rescue service ,103943,Teletrac Navman (UK) Limited,Teletrac Navman (UK) Limited,Management & Support Services,5,202402,01/05/2023,P6,9106260,"-1,071.96 ","1,071.96 ",3203,Motor Tax / Licenses,2084,Engineering,893.30 
Nottimghamshire fire and rescue service ,103943,Teletrac Navman (UK) Limited,Teletrac Navman (UK) Limited,Management & Support Services,5,202402,01/06/2023,P6,9106509,"-1,071.96 ","1,071.96 ",3203,Motor Tax / Licenses,2084,Engineering,893.30 
Nottimghamshire fire and rescue service ,104196,Central Cars Nottingham Limited,Central Cars Nottingham Limited,Management & Support Services,5,202402,02/05/2023,P6,9106383,-281.76 ,281.76 ,3504,Public Transport,2054,Equalities Team,234.80 
Nottimghamshire fire and rescue service ,104196,Central Cars Nottingham Limited,Central Cars Nottingham Limited,Management & Support Services,5,202402,24/04/2023,P6,9106382,-314.28 ,314.28 ,3504,Public Transport,2054,Equalities Team,261.90 
Nottimghamshire fire and rescue service ,101860,Zurich Municipal (Head Office & Underwriting),Zurich Municipal (Head Office & Underwriting),Management & Support Services,1,202402,17/04/2023,P6,9106479,"-383,029.04 ","383,029.04 ",3890,Insurance - Vehicles,2063,Risk Management & Insurance,"160,830.85 "
Nottimghamshire fire and rescue service ,102070,Life Safety Distribution AG,Life Safety Distribution AG,Management & Support Services,1,202402,22/05/2023,P6,9106500,-277.20 ,277.20 ,4000,Operational Equipment Purchase,2084,Engineering,14.00 
Nottimghamshire fire and rescue service ,102070,Life Safety Distribution AG,Life Safety Distribution AG,Management & Support Services,1,202402,22/05/2023,P6,9106500,-277.20 ,277.20 ,4000,Operational Equipment Purchase,2084,Engineering,57.00 
Nottimghamshire fire and rescue service ,102070,Life Safety Distribution AG,Life Safety Distribution AG,Management & Support Services,1,202402,22/05/2023,P6,9106500,-277.20 ,277.20 ,4000,Operational Equipment Purchase,2084,Engineering,160.00 
Nottimghamshire fire and rescue service ,103443,Terberg DTS UK Limited,Terberg DTS UK Limited,Management & Support Services,5,202402,19/05/2023,P6,9106413,-290.81 ,290.81 ,4000,Operational Equipment Purchase,2084,Engineering,242.34 
Nottimghamshire fire and rescue service ,103443,Terberg DTS UK Limited,Terberg DTS UK Limited,Management & Support Services,5,202402,12/05/2023,P6,9106317,-416.05 ,416.05 ,4000,Operational Equipment Purchase,2084,Engineering,346.71 
Nottimghamshire fire and rescue service ,104128,LeasePlan UK Limited,LeasePlan UK Limited,Management & Support Services,5,202402,05/04/2023,P6,9106281,"-1,107.78 ","1,107.78 ",4000,Operational Equipment Purchase,2068,Prevention,923.16 
Nottimghamshire fire and rescue service ,104128,LeasePlan UK Limited,LeasePlan UK Limited,Management & Support Services,5,202402,03/05/2023,P6,9106319,"-1,107.78 ","1,107.78 ",4000,Operational Equipment Purchase,2068,Prevention,923.16 
Nottimghamshire fire and rescue service ,103443,Terberg DTS UK Limited,Terberg DTS UK Limited,Management & Support Services,5,202402,18/05/2023,P6,9106396,"-5,532.00 ","5,532.00 ",4000,Operational Equipment Purchase,2084,Engineering,"4,610.00 "
Nottimghamshire fire and rescue service ,103094,Draeger Safety UK Limited,Draeger Safety UK Limited,Management & Support Services,5,202402,25/05/2023,P6,9106523,-469.85 ,469.85 ,4002,Breathing Apparatus,2084,Engineering,391.54 
Nottimghamshire fire and rescue service ,103094,Draeger Safety UK Limited,Draeger Safety UK Limited,Management & Support Services,5,202402,24/05/2023,P6,9106540,"-3,840.00 ","3,840.00 ",4002,Breathing Apparatus,2084,Engineering,"1,500.00 "
Nottimghamshire fire and rescue service ,100109,Fire Hosetech,Fire Hosetech,Management & Support Services,1,202402,02/05/2023,P6,9106209,-709.76 ,709.76 ,4004,Fire Hose and Couplings,2084,Engineering,591.47 
Nottimghamshire fire and rescue service ,102203,Flogas Britian Limited,Flogas Britian Limited,Management & Support Services,1,202402,15/04/2023,P6,9106307,"-1,289.57 ","1,289.57 ",4006,Oxygen and Other Gases,2084,Engineering,"1,074.64 "
Nottimghamshire fire and rescue service ,102203,Flogas Britian Limited,Flogas Britian Limited,Management & Support Services,1,202402,15/05/2023,P6,9106502,"-1,289.57 ","1,289.57 ",4006,Oxygen and Other Gases,2084,Engineering,"1,074.64 "
Nottimghamshire fire and rescue service ,100428,Clan Tools & Plant Ltd,Clan Tools & Plant Ltd,Management & Support Services,1,202402,10/05/2023,P6,9106268,-794.40 ,794.40 ,4007,Equipment Annual Service,2084,Engineering,662.00 
Nottimghamshire fire and rescue service ,101890,Survitec Service & Distribution Ltd,Survitec Service & Distribution Ltd,Management & Support Services,1,202402,17/05/2023,P6,9106415,"-1,205.44 ","1,205.44 ",4007,Equipment Annual Service,2084,Engineering,25.00 
Nottimghamshire fire and rescue service ,101890,Survitec Service & Distribution Ltd,Survitec Service & Distribution Ltd,Management & Support Services,1,202402,17/05/2023,P6,9106415,"-1,205.44 ","1,205.44 ",4007,Equipment Annual Service,2084,Engineering,979.54 
Nottimghamshire fire and rescue service ,103257,Midland HR,Midland HR,Management & Support Services,5,202402,21/04/2023,P6,9106235,"14,190.00 ","-14,190.00 ",4101,Computer Software Maintenance Contracts,2097,ICT Service Operations,"-11,825.00 "
Nottimghamshire fire and rescue service ,103257,Midland HR,Midland HR,Management & Support Services,5,202402,21/04/2023,P6,9106225,"10,659.00 ","-10,659.00 ",4101,Computer Software Maintenance Contracts,2095,ICT Digital Transformation,"-8,882.50 "
Nottimghamshire fire and rescue service ,103257,Midland HR,Midland HR,Management & Support Services,5,202402,21/04/2023,P6,9106233,"10,659.00 ","-10,659.00 ",4101,Computer Software Maintenance Contracts,2095,ICT Digital Transformation,"-8,882.50 "
Nottimghamshire fire and rescue service ,103257,Midland HR,Midland HR,Management & Support Services,5,202402,21/04/2023,P6,9106230,731.70 ,-731.70 ,4101,Computer Software Maintenance Contracts,2097,ICT Service Operations,-609.75 
Nottimghamshire fire and rescue service ,103257,Midland HR,Midland HR,Management & Support Services,5,202402,21/04/2023,P6,9106228,406.96 ,-406.96 ,4101,Computer Software Maintenance Contracts,2095,ICT Digital Transformation,-339.13 
Nottimghamshire fire and rescue service ,103483,Risual Limited,Risual Limited,Management & Support Services,5,202402,30/05/2023,P6,9106522,-270.00 ,270.00 ,4101,Computer Software Maintenance Contracts,2097,ICT Service Operations,225.00 
Nottimghamshire fire and rescue service ,102261,Airwave Solutions Ltd,Airwave Solutions Ltd,Management & Support Services,1,202402,17/05/2023,P6,9106424,-949.78 ,949.78 ,4101,Computer Software Maintenance Contracts,2097,ICT Service Operations,791.49 
Nottimghamshire fire and rescue service ,103795,Idox Software Ltd,Idox Software Ltd,Management & Support Services,5,202402,05/05/2023,P6,9106274,"-2,259.85 ","2,259.85 ",4101,Computer Software Maintenance Contracts,2097,ICT Service Operations,"1,883.21 "
Nottimghamshire fire and rescue service ,102215,Performance Monitoring Systems Ltd,Performance Monitoring Systems Ltd,Management & Support Services,1,202402,22/05/2023,P6,9106457,"-6,930.00 ","6,930.00 ",4101,Computer Software Maintenance Contracts,2095,ICT Digital Transformation,"5,775.00 "
Nottimghamshire fire and rescue service ,103373,GTT (Interoute/Easynet),GTT (Interoute/Easynet),Management & Support Services,5,202402,25/04/2023,P6,9106236,"-15,509.04 ","15,509.04 ",4101,Computer Software Maintenance Contracts,2095,ICT Digital Transformation,"12,924.21 "
Nottimghamshire fire and rescue service ,103582,Softcat Limited,Softcat Limited,Management & Support Services,5,202402,25/05/2023,P6,9106533,"-18,655.18 ","18,655.18 ",4101,Computer Software Maintenance Contracts,2097,ICT Service Operations,"15,545.99 "
Nottimghamshire fire and rescue service ,103604,E-Semble (XVR),E-Semble (XVR),Management & Support Services,5,202402,18/04/2023,P6,9106425,"-19,800.00 ","19,800.00 ",4101,Computer Software Maintenance Contracts,2097,ICT Service Operations,"19,800.00 "
Nottimghamshire fire and rescue service ,103582,Softcat Limited,Softcat Limited,Management & Support Services,5,202402,25/05/2023,P6,9106534,"-22,239.02 ","22,239.02 ",4101,Computer Software Maintenance Contracts,2097,ICT Service Operations,"18,532.52 "
Nottimghamshire fire and rescue service ,103582,Softcat Limited,Softcat Limited,Management & Support Services,5,202402,25/05/2023,P6,9106513,"-37,156.25 ","37,156.25 ",4101,Computer Software Maintenance Contracts,2097,ICT Service Operations,"30,963.54 "
Nottimghamshire fire and rescue service ,103582,Softcat Limited,Softcat Limited,Management & Support Services,5,202402,25/05/2023,P6,9106535,"-39,333.48 ","39,333.48 ",4101,Computer Software Maintenance Contracts,2097,ICT Service Operations,"32,777.90 "
Nottimghamshire fire and rescue service ,100467,Kingsfield Computer Products Ltd,Kingsfield Computer Products Ltd,Management & Support Services,1,202402,12/05/2023,P6,9106314,-294.00 ,294.00 ,4102,Computer Consumables,2097,ICT Service Operations,245.00 
Nottimghamshire fire and rescue service ,100467,Kingsfield Computer Products Ltd,Kingsfield Computer Products Ltd,Management & Support Services,1,202402,11/05/2023,P6,9106273,-345.46 ,345.46 ,4102,Computer Consumables,2097,ICT Service Operations,287.88 
Nottimghamshire fire and rescue service ,102103,Ricoh Uk Ltd,Ricoh Uk Ltd,Management & Support Services,1,202402,05/05/2023,P6,9106296,"-4,202.46 ","4,202.46 ",4102,Computer Consumables,2097,ICT Service Operations,"3,502.05 "
Nottimghamshire fire and rescue service ,102280,Amptron Electrical Services,Amptron Electrical Services,Management & Support Services,1,202402,30/11/2022,P6,9106340,-867.36 ,867.36 ,4104,Non-Contracted Services - ICT,2097,ICT Service Operations,722.80 
Nottimghamshire fire and rescue service ,103730,J A Burns t/a squircle IT,J A Burns t/a squircle IT,Management & Support Services,5,202402,13/03/2023,P6,9106486,"-1,935.00 ","1,935.00 ",4104,Non-Contracted Services - ICT,2097,ICT Service Operations,"1,612.50 "
Nottimghamshire fire and rescue service ,102103,Ricoh Uk Ltd,Ricoh Uk Ltd,Management & Support Services,1,202402,05/04/2023,P6,9106295,-630.36 ,630.36 ,4105,Photocopier,2097,ICT Service Operations,525.30 
Nottimghamshire fire and rescue service ,102103,Ricoh Uk Ltd,Ricoh Uk Ltd,Management & Support Services,1,202402,05/05/2023,P6,9106294,"-1,143.65 ","1,143.65 ",4105,Photocopier,2097,ICT Service Operations,953.04 
Nottimghamshire fire and rescue service ,102103,Ricoh Uk Ltd,Ricoh Uk Ltd,Management & Support Services,1,202402,05/05/2023,P6,9106297,"-1,447.60 ","1,447.60 ",4105,Photocopier,2097,ICT Service Operations,"1,206.33 "
Nottimghamshire fire and rescue service ,102103,Ricoh Uk Ltd,Ricoh Uk Ltd,Management & Support Services,1,202402,14/04/2023,P6,9106298,"-1,972.80 ","1,972.80 ",4105,Photocopier,2097,ICT Service Operations,"1,644.00 "
Nottimghamshire fire and rescue service ,100289,Home Office,Home Office,Management & Support Services,4,202402,11/05/2023,P6,9106412,"-64,465.88 ","64,465.88 ",4204,FireLink Contract Charges,2097,ICT Service Operations,"53,721.57 "
Nottimghamshire fire and rescue service ,103092,Daisy Corporate Services Trading Limited,Daisy Corporate Services Trading Limited,Management & Support Services,1,202402,01/05/2023,P6,9106327,"-1,825.49 ","1,825.49 ",4301,Phones - Landline,2096,ICT Service Transformation,"1,521.24 "
Nottimghamshire fire and rescue service ,102420,BT PLC,BT PLC,Management & Support Services,1,202402,08/05/2023,P6,9106329,"-4,297.36 ","4,297.36 ",4301,Phones - Landline,2097,ICT Service Operations,"3,581.13 "
Nottimghamshire fire and rescue service ,103214,Excelerate Technology Limited,Excelerate Technology Limited,Management & Support Services,5,202402,11/05/2023,P6,9106287,"-1,021.20 ","1,021.20 ",4302,Phones - Mobiles,2097,ICT Service Operations,851.00 
Nottimghamshire fire and rescue service ,101802,EE,EE,Management & Support Services,1,202402,01/05/2023,P6,9106330,"-4,000.72 ","4,000.72 ",4302,Phones - Mobiles,2097,ICT Service Operations,"3,333.93 "
Nottimghamshire fire and rescue service ,102190,Dot Promotional Clothing,Dot Promotional Clothing,Management & Support Services,1,202402,27/04/2023,P6,9106200,-571.20 ,571.20 ,4400,Clothing and Uniform,2086,Procurement,476.00 
Nottimghamshire fire and rescue service ,104095,Hunter Apparel Solutions Limited,Hunter Apparel Solutions Limited,Management & Support Services,5,202402,30/04/2023,P6,9106246,"-1,282.44 ","1,282.44 ",4400,Clothing and Uniform,1030,Service Development Centre,"1,068.70 "
Nottimghamshire fire and rescue service ,104129,Oxford Safety Supplies,Oxford Safety Supplies,Management & Support Services,5,202402,08/03/2023,P6,9106360,-556.56 ,556.56 ,4401,Protective Clothing,2086,Procurement,463.80 
Nottimghamshire fire and rescue service ,104129,Oxford Safety Supplies,Oxford Safety Supplies,Management & Support Services,5,202402,14/03/2023,P6,9106361,-820.14 ,820.14 ,4401,Protective Clothing,2086,Procurement,683.45 
Nottimghamshire fire and rescue service ,104129,Oxford Safety Supplies,Oxford Safety Supplies,Management & Support Services,5,202402,06/03/2023,P6,9106341,"-2,622.36 ","2,622.36 ",4401,Protective Clothing,2086,Procurement,"2,185.30 "
Nottimghamshire fire and rescue service ,104095,Hunter Apparel Solutions Limited,Hunter Apparel Solutions Limited,Management & Support Services,5,202402,10/05/2023,P6,9106269,"-2,937.60 ","2,937.60 ",4401,Protective Clothing,2086,Procurement,"2,448.00 "
Nottimghamshire fire and rescue service ,102376,Bristol Uniforms Limited,Bristol Uniforms Limited,Management & Support Services,1,202402,30/04/2023,P6,9106466,"-10,288.04 ","10,288.04 ",4402,Uniform and Protectice Clothing Repairs,2086,Procurement,"2,082.54 "
Nottimghamshire fire and rescue service ,102376,Bristol Uniforms Limited,Bristol Uniforms Limited,Management & Support Services,1,202402,30/04/2023,P6,9106466,"-10,288.04 ","10,288.04 ",4403,Laundry and Dry Cleaning,2086,Procurement,"6,490.83 "
Nottimghamshire fire and rescue service ,103678,Fitness Warehouse Limited t/a Gym Gear,Fitness Warehouse Limited t/a Gym Gear,Management & Support Services,5,202402,19/05/2023,P6,9106420,"-5,460.00 ","5,460.00 ",4511,Fitness Equipment Maintenance,2061,Occupational Health & Fitness,"4,550.00 "
Nottimghamshire fire and rescue service ,103695,Pulp Friction Smoothie Bar CIC,Pulp Friction Smoothie Bar CIC,Operational Responses,5,202402,19/05/2023,P6,9106456,-331.20 ,331.20 ,4523,Catering/Food & Beverages,2013,Service Delivery,276.00 
Nottimghamshire fire and rescue service ,103695,Pulp Friction Smoothie Bar CIC,Pulp Friction Smoothie Bar CIC,Management & Support Services,5,202402,05/05/2023,P6,9106277,-538.56 ,538.56 ,4523,Catering/Food & Beverages,2073,Assurance and Risk,448.80 
Nottimghamshire fire and rescue service ,103695,Pulp Friction Smoothie Bar CIC,Pulp Friction Smoothie Bar CIC,Management & Support Services,5,202402,09/05/2023,P6,9106272,-864.00 ,864.00 ,4523,Catering/Food & Beverages,2093,Command Suite,720.00 
Nottimghamshire fire and rescue service ,104273,Fine Foods Exchange,Fine Foods Exchange,Management & Support Services,5,202402,17/05/2023,P6,9106481,-918.00 ,918.00 ,4523,Catering/Food & Beverages,2059,Corporate Training,765.00 
Nottimghamshire fire and rescue service ,101929,Selecta UK,Selecta UK,Management & Support Services,1,202402,26/05/2023,P6,9106531,-265.44 ,265.44 ,4524,Drinking Water,2059,Corporate Training,221.20 
Nottimghamshire fire and rescue service ,100423,Royal Mail (Bacs),Royal Mail (Bacs),Management & Support Services,1,202402,15/05/2023,P6,9106496,"-1,044.00 ","1,044.00 ",4533,Postage,2075,Service Support Hub,870.00 
Nottimghamshire fire and rescue service ,100468,Specialised Canvas Group,Specialised Canvas Group,Management & Support Services,1,202402,02/05/2023,P6,9106305,-330.11 ,330.11 ,4534,Carriage and Packaging,2086,Procurement,15.61 
Nottimghamshire fire and rescue service ,102599,Globehuggers Emergenc Supplies,Globehuggers Emergenc Supplies,Management & Support Services,1,202402,26/04/2023,P6,9106175,-355.14 ,355.14 ,4534,Carriage and Packaging,9999,Default,6.95 
Nottimghamshire fire and rescue service ,102306,Northern Diver (International) Ltd,Northern Diver (International) Ltd,Management & Support Services,1,202402,25/05/2023,P6,9106518,-367.20 ,367.20 ,4534,Carriage and Packaging,9999,Default,9.50 
Nottimghamshire fire and rescue service ,104201,BlockaboxLimited,BlockaboxLimited,Management & Support Services,5,202402,26/05/2023,P6,9106516,-385.00 ,385.00 ,4534,Carriage and Packaging,9999,Default,10.00 
Nottimghamshire fire and rescue service ,100468,Specialised Canvas Group,Specialised Canvas Group,Management & Support Services,1,202402,23/05/2023,P6,9106521,-945.87 ,945.87 ,4534,Carriage and Packaging,9999,Default,36.08 
Nottimghamshire fire and rescue service ,100290,Lemaitre Ltd,Lemaitre Ltd,Management & Support Services,1,202402,28/04/2023,P6,9106173,"-2,180.88 ","2,180.88 ",4534,Carriage and Packaging,9999,Default,75.00 
Nottimghamshire fire and rescue service ,103449,CMT Flexibles Limited,CMT Flexibles Limited,Management & Support Services,5,202402,22/05/2023,P6,9106501,-490.18 ,490.18 ,4541,Hydrant Maintenance,2084,Engineering,16.00 
Nottimghamshire fire and rescue service ,103449,CMT Flexibles Limited,CMT Flexibles Limited,Management & Support Services,5,202402,22/05/2023,P6,9106501,-490.18 ,490.18 ,4541,Hydrant Maintenance,2084,Engineering,392.48 
Nottimghamshire fire and rescue service ,102964,Trinity Occupational and Public Health Solutions Ltd,Trinity Occupational and Public Health Solutions Ltd,Management & Support Services,5,202402,31/08/2022,P6,9106264,-750.00 ,750.00 ,4552,Occupational Health Costs,2061,Occupational Health & Fitness,750.00 
Nottimghamshire fire and rescue service ,102964,Trinity Occupational and Public Health Solutions Ltd,Trinity Occupational and Public Health Solutions Ltd,Management & Support Services,5,202402,28/04/2023,P6,9106265,"-2,250.00 ","2,250.00 ",4552,Occupational Health Costs,2061,Occupational Health & Fitness,"2,250.00 "
Nottimghamshire fire and rescue service ,103730,J A Burns t/a squircle IT,J A Burns t/a squircle IT,Management & Support Services,5,202402,25/05/2023,P6,9106536,"-32,260.32 ","32,260.32 ",4554,Consultancy Fees - Non Estates Related,2097,ICT Service Operations,"26,883.60 "
Nottimghamshire fire and rescue service ,101712,Browne Jacobson LLP,Browne Jacobson LLP,Management & Support Services,1,202402,22/04/2023,P6,9106216,-622.08 ,622.08 ,4556,Translation and Interpretation Services,2075,Service Support Hub,518.40 
Nottimghamshire fire and rescue service ,101000,C F S Messing Account Stockhill,C F S Messing Account Stockhill,Operational Responses,8,202402,15/05/2023,P6,9106469,-321.30 ,321.30 ,4560,Subsistence,1020,Stockhill,321.30 
Nottimghamshire fire and rescue service ,100242,Cipfa Business Ltd,Cipfa Business Ltd,Management & Support Services,1,202402,06/03/2023,P6,9106338,"-4,055.00 ","4,055.00 ",4582,Reference Books and Publications,2081,Finance,"4,055.00 "
Nottimghamshire fire and rescue service ,102547,Firefighter Protection Uk,Firefighter Protection Uk,Management & Support Services,1,202402,09/05/2023,P6,9106322,-270.60 ,270.60 ,4594,Training/ Teaching Equipment,2059,Corporate Training,225.50 
Nottimghamshire fire and rescue service ,102547,Firefighter Protection Uk,Firefighter Protection Uk,Management & Support Services,1,202402,03/05/2023,P6,9106271,"-1,386.72 ","1,386.72 ",4594,Training/ Teaching Equipment,2059,Corporate Training,676.50 
Nottimghamshire fire and rescue service ,100290,Lemaitre Ltd,Lemaitre Ltd,Management & Support Services,1,202402,19/04/2023,P6,9106172,"-1,580.64 ","1,580.64 ",4594,Training/ Teaching Equipment,2059,Corporate Training,50.00 
Nottimghamshire fire and rescue service ,100290,Lemaitre Ltd,Lemaitre Ltd,Management & Support Services,1,202402,19/04/2023,P6,9106172,"-1,580.64 ","1,580.64 ",4594,Training/ Teaching Equipment,2059,Corporate Training,"1,267.20 "
Nottimghamshire fire and rescue service ,103849,Vision Support Services Ltd,Vision Support Services Ltd,Operational Responses,5,202402,25/04/2023,P6,9106142,-367.14 ,367.14 ,4600,Community Safety Delivery Consumables,1016,Newark,305.95 
Nottimghamshire fire and rescue service ,103849,Vision Support Services Ltd,Vision Support Services Ltd,Management & Support Services,5,202402,25/04/2023,P6,9106266,-734.28 ,734.28 ,4600,Community Safety Delivery Consumables,2068,Prevention,611.90 
Nottimghamshire fire and rescue service ,104129,Oxford Safety Supplies,Oxford Safety Supplies,Management & Support Services,5,202402,21/04/2023,P6,9106320,429.18 ,-429.18 ,4611,Stock Adjustments,2086,Procurement,-357.65 
Nottimghamshire fire and rescue service ,100444,Fire Sector Federation,Fire Sector Federation,Management & Support Services,1,202402,01/04/2023,P6,9106525,-500.00 ,500.00 ,4621,Contribution to Partnership Working,2093,Command Suite,500.00 
Nottimghamshire fire and rescue service ,101860,Zurich Municipal (Head Office & Underwriting),Zurich Municipal (Head Office & Underwriting),Management & Support Services,1,202402,14/04/2023,P6,9106477,-432.17 ,432.17 ,4890,Insurance - Other Premiums,2063,Risk Management & Insurance,385.87 
Nottimghamshire fire and rescue service ,100856,Arthur J Gallagher,Arthur J Gallagher,Management & Support Services,1,202402,06/04/2023,P6,9106474,-560.00 ,560.00 ,4890,Insurance - Other Premiums,2063,Risk Management & Insurance,560.00 
Nottimghamshire fire and rescue service ,100856,Arthur J Gallagher,Arthur J Gallagher,Management & Support Services,1,202402,06/04/2023,P6,9106473,"-5,234.06 ","5,234.06 ",4890,Insurance - Other Premiums,2063,Risk Management & Insurance,"5,234.06 "
Nottimghamshire fire and rescue service ,101860,Zurich Municipal (Head Office & Underwriting),Zurich Municipal (Head Office & Underwriting),Management & Support Services,1,202402,14/04/2023,P6,9106478,"-7,621.82 ","7,621.82 ",4890,Insurance - Other Premiums,2063,Risk Management & Insurance,"6,805.20 "
Nottimghamshire fire and rescue service ,100856,Arthur J Gallagher,Arthur J Gallagher,Management & Support Services,1,202402,06/04/2023,P6,9106476,"-26,958.58 ","26,958.58 ",4890,Insurance - Other Premiums,2063,Risk Management & Insurance,"26,958.58 "
Nottimghamshire fire and rescue service ,101860,Zurich Municipal (Head Office & Underwriting),Zurich Municipal (Head Office & Underwriting),Management & Support Services,1,202402,17/04/2023,P6,9106479,"-383,029.04 ","383,029.04 ",4890,Insurance - Other Premiums,2063,Risk Management & Insurance,"222,198.19 "
Nottimghamshire fire and rescue service ,101782,Derbyshire Fire Authority,Derbyshire Fire Authority,Operational Responses,4,202402,31/05/2023,P6,9106529,"-233,459.87 ","233,459.87 ",5000,Third Party Payments,2005,Fire Control,"233,459.87 "
Nottimghamshire fire and rescue service ,103772,E P Barrus Ltd,E P Barrus Ltd,Fire Service Emergency Planning & Civil Defence,5,202402,16/03/2023,P6,9106247,"-5,956.67 ","5,956.67 ",9000,Government Grant - Revenue,2009,Resiliance & Emergency Planning,"1,000.00 "
Nottimghamshire fire and rescue service ,101876,Rushcliffe Borough Council,Rushcliffe Borough Council,Management & Support Services,4,202402,09/05/2023,P6,9106339,"-36,848.00 ","36,848.00 ",9904,Council Tax - Collection,5997,Surplus/Deficit on Provision of Services CIandE,"36,848.00 "
Nottimghamshire fire and rescue service ,104020,MPL (Yorkshire) Ltd,MPL (Yorkshire) Ltd,Management & Support Services,5,202402,15/05/2023,P6,9106354,-257.40 ,257.40 ,B314,Stock   ,9999,Default,214.50 
Nottimghamshire fire and rescue service ,103981,Joseph Gleave and Son Limited -Joseph Gleave and Son (Holdings) Limited,Joseph Gleave and Son Limited -Joseph Gleave and Son (Holdings) Limited,Management & Support Services,5,202402,05/05/2023,P6,9106240,-264.24 ,264.24 ,B314,Stock   ,9999,Default,220.20 
Nottimghamshire fire and rescue service ,103981,Joseph Gleave and Son Limited -Joseph Gleave and Son (Holdings) Limited,Joseph Gleave and Son Limited -Joseph Gleave and Son (Holdings) Limited,Management & Support Services,5,202402,05/05/2023,P6,9106245,-264.24 ,264.24 ,B314,Stock   ,9999,Default,220.20 
Nottimghamshire fire and rescue service ,104020,MPL (Yorkshire) Ltd,MPL (Yorkshire) Ltd,Management & Support Services,5,202402,26/04/2023,P6,9106204,-270.00 ,270.00 ,B314,Stock   ,9999,Default,225.00 
Nottimghamshire fire and rescue service ,100268,County Supplies-Sales Ledger,County Supplies-Sales Ledger,Management & Support Services,4,202402,17/05/2023,P6,9106411,-301.68 ,301.68 ,B314,Stock   ,9999,Default,251.40 
Nottimghamshire fire and rescue service ,103981,Joseph Gleave and Son Limited -Joseph Gleave and Son (Holdings) Limited,Joseph Gleave and Son Limited -Joseph Gleave and Son (Holdings) Limited,Management & Support Services,5,202402,05/05/2023,P6,9106239,-313.66 ,313.66 ,B314,Stock   ,9999,Default,261.38 
Nottimghamshire fire and rescue service ,103981,Joseph Gleave and Son Limited -Joseph Gleave and Son (Holdings) Limited,Joseph Gleave and Son Limited -Joseph Gleave and Son (Holdings) Limited,Management & Support Services,5,202402,10/02/2023,P6,9106192,-315.36 ,315.36 ,B314,Stock   ,9999,Default,262.80 
Nottimghamshire fire and rescue service ,100468,Specialised Canvas Group,Specialised Canvas Group,Management & Support Services,1,202402,02/05/2023,P6,9106305,-330.11 ,330.11 ,B314,Stock   ,9999,Default,259.48 
Nottimghamshire fire and rescue service ,103981,Joseph Gleave and Son Limited -Joseph Gleave and Son (Holdings) Limited,Joseph Gleave and Son Limited -Joseph Gleave and Son (Holdings) Limited,Management & Support Services,5,202402,05/05/2023,P6,9106243,-344.04 ,344.04 ,B314,Stock   ,9999,Default,286.70 
Nottimghamshire fire and rescue service ,102599,Globehuggers Emergenc Supplies,Globehuggers Emergenc Supplies,Management & Support Services,1,202402,26/04/2023,P6,9106175,-355.14 ,355.14 ,B314,Stock   ,9999,Default,289.00 
Nottimghamshire fire and rescue service ,103981,Joseph Gleave and Son Limited -Joseph Gleave and Son (Holdings) Limited,Joseph Gleave and Son Limited -Joseph Gleave and Son (Holdings) Limited,Management & Support Services,5,202402,19/05/2023,P6,9106407,-363.19 ,363.19 ,B314,Stock   ,9999,Default,302.66 
Nottimghamshire fire and rescue service ,102306,Northern Diver (International) Ltd,Northern Diver (International) Ltd,Management & Support Services,1,202402,25/05/2023,P6,9106518,-367.20 ,367.20 ,B314,Stock   ,9999,Default,296.50 
Nottimghamshire fire and rescue service ,103242,New Balance Athletic Shoes (UK) Limited,New Balance Athletic Shoes (UK) Limited,Management & Support Services,5,202402,23/05/2023,P6,9106503,-380.04 ,380.04 ,B314,Stock   ,9999,Default,316.70 
Nottimghamshire fire and rescue service ,104201,BlockaboxLimited,BlockaboxLimited,Management & Support Services,5,202402,26/05/2023,P6,9106516,-385.00 ,385.00 ,B314,Stock   ,9999,Default,375.00 
Nottimghamshire fire and rescue service ,102376,Bristol Uniforms Limited,Bristol Uniforms Limited,Management & Support Services,1,202402,26/05/2023,P6,9106515,-432.00 ,432.00 ,B314,Stock   ,9999,Default,360.00 
Nottimghamshire fire and rescue service ,102376,Bristol Uniforms Limited,Bristol Uniforms Limited,Management & Support Services,1,202402,16/05/2023,P6,9106462,-462.26 ,462.26 ,B314,Stock   ,9999,Default,385.22 
Nottimghamshire fire and rescue service ,102376,Bristol Uniforms Limited,Bristol Uniforms Limited,Management & Support Services,1,202402,16/05/2023,P6,9106468,-611.40 ,611.40 ,B314,Stock   ,9999,Default,509.50 
Nottimghamshire fire and rescue service ,103981,Joseph Gleave and Son Limited -Joseph Gleave and Son (Holdings) Limited,Joseph Gleave and Son Limited -Joseph Gleave and Son (Holdings) Limited,Management & Support Services,5,202402,05/05/2023,P6,9106242,-645.43 ,645.43 ,B314,Stock   ,9999,Default,537.86 
Nottimghamshire fire and rescue service ,100357,Eastern Shires Purchasing Organisation,Eastern Shires Purchasing Organisation,Management & Support Services,1,202402,02/05/2023,P6,9106304,-664.38 ,664.38 ,B314,Stock   ,9999,Default,553.65 
Nottimghamshire fire and rescue service ,103242,New Balance Athletic Shoes (UK) Limited,New Balance Athletic Shoes (UK) Limited,Management & Support Services,5,202402,24/01/2023,P6,9106306,-760.08 ,760.08 ,B314,Stock   ,9999,Default,633.40 
Nottimghamshire fire and rescue service ,103242,New Balance Athletic Shoes (UK) Limited,New Balance Athletic Shoes (UK) Limited,Management & Support Services,5,202402,23/05/2023,P6,9106506,-836.09 ,836.09 ,B314,Stock   ,9999,Default,696.74 
Nottimghamshire fire and rescue service ,103685,AB Sports Nutrition,AB Sports Nutrition,Management & Support Services,5,202402,18/05/2023,P6,9106399,-921.98 ,921.98 ,B314,Stock   ,9999,Default,768.32 
Nottimghamshire fire and rescue service ,100299,FireAngel Safety Technology Limited,FireAngel Safety Technology Limited,Management & Support Services,1,202402,11/05/2023,P6,9106288,-934.56 ,934.56 ,B314,Stock   ,9999,Default,778.80 
Nottimghamshire fire and rescue service ,100468,Specialised Canvas Group,Specialised Canvas Group,Management & Support Services,1,202402,23/05/2023,P6,9106521,-945.87 ,945.87 ,B314,Stock   ,9999,Default,752.14 
Nottimghamshire fire and rescue service ,102376,Bristol Uniforms Limited,Bristol Uniforms Limited,Management & Support Services,1,202402,19/05/2023,P6,9106480,"-1,003.68 ","1,003.68 ",B314,Stock   ,9999,Default,836.40 
Nottimghamshire fire and rescue service ,100357,Eastern Shires Purchasing Organisation,Eastern Shires Purchasing Organisation,Management & Support Services,1,202402,09/05/2023,P6,9106300,"-1,044.60 ","1,044.60 ",B314,Stock   ,9999,Default,870.50 
Nottimghamshire fire and rescue service ,102376,Bristol Uniforms Limited,Bristol Uniforms Limited,Management & Support Services,1,202402,25/04/2023,P6,9106179,"-1,244.35 ","1,244.35 ",B314,Stock   ,9999,Default,"1,036.96 "
Nottimghamshire fire and rescue service ,102376,Bristol Uniforms Limited,Bristol Uniforms Limited,Management & Support Services,1,202402,17/05/2023,P6,9106421,"-1,387.63 ","1,387.63 ",B314,Stock   ,9999,Default,"1,156.36 "
Nottimghamshire fire and rescue service ,102376,Bristol Uniforms Limited,Bristol Uniforms Limited,Management & Support Services,1,202402,25/04/2023,P6,9106180,"-1,530.91 ","1,530.91 ",B314,Stock   ,9999,Default,"1,275.76 "
Nottimghamshire fire and rescue service ,102376,Bristol Uniforms Limited,Bristol Uniforms Limited,Management & Support Services,1,202402,15/05/2023,P6,9106359,"-1,881.53 ","1,881.53 ",B314,Stock   ,9999,Default,"1,567.94 "
Nottimghamshire fire and rescue service ,102376,Bristol Uniforms Limited,Bristol Uniforms Limited,Management & Support Services,1,202402,16/05/2023,P6,9106467,"-2,009.81 ","2,009.81 ",B314,Stock   ,9999,Default,"1,674.84 "
Nottimghamshire fire and rescue service ,102376,Bristol Uniforms Limited,Bristol Uniforms Limited,Management & Support Services,1,202402,17/05/2023,P6,9106422,"-2,011.82 ","2,011.82 ",B314,Stock   ,9999,Default,"1,676.52 "
Nottimghamshire fire and rescue service ,100290,Lemaitre Ltd,Lemaitre Ltd,Management & Support Services,1,202402,28/04/2023,P6,9106173,"-2,180.88 ","2,180.88 ",B314,Stock   ,9999,Default,"1,742.40 "
Nottimghamshire fire and rescue service ,102376,Bristol Uniforms Limited,Bristol Uniforms Limited,Management & Support Services,1,202402,16/05/2023,P6,9106460,"-2,805.84 ","2,805.84 ",B314,Stock   ,9999,Default,"2,338.20 "
Nottimghamshire fire and rescue service ,103443,Terberg DTS UK Limited,Terberg DTS UK Limited,Management & Support Services,5,202402,31/05/2023,P6,9106530,"-3,528.00 ","3,528.00 ",B314,Stock   ,9999,Default,"2,940.00 "
Nottimghamshire fire and rescue service ,102376,Bristol Uniforms Limited,Bristol Uniforms Limited,Management & Support Services,1,202402,02/05/2023,P6,9106182,"-9,733.64 ","9,733.64 ",B314,Stock   ,9999,Default,"8,111.37 "
Nottimghamshire fire and rescue service ,102376,Bristol Uniforms Limited,Bristol Uniforms Limited,Management & Support Services,1,202402,24/04/2023,P6,9106141,"-15,107.29 ","15,107.29 ",B314,Stock   ,9999,Default,"12,589.41 "
Nottimghamshire fire and rescue service ,102280,Amptron Electrical Services,Amptron Electrical Services,Management & Support Services,1,202402,31/03/2023,P6,9106417,"-48,000.00 ","48,000.00 ",C101,Building Works,4101,Non Operational Buildings Improvements & Refurbishments,"40,000.00 "
Nottimghamshire fire and rescue service ,103814,Ergo Computing UK,Ergo Computing UK,Management & Support Services,5,202402,30/03/2023,P6,9106201,"-1,453.64 ","1,453.64 ",C200,Hardware,4300,ICT Capital Programme,"1,211.37 "
Nottimghamshire fire and rescue service ,100467,Kingsfield Computer Products Ltd,Kingsfield Computer Products Ltd,Management & Support Services,1,202402,11/05/2023,P6,9106309,"-30,856.80 ","30,856.80 ",C200,Hardware,4300,ICT Capital Programme,"25,714.00 "
Nottimghamshire fire and rescue service ,102072,Civica Uk Limited,Civica Uk Limited,Management & Support Services,1,202402,22/02/2023,P6,9106321,"-2,160.00 ","2,160.00 ",C201,Software and Licences,4300,ICT Capital Programme,"1,800.00 "
Nottimghamshire fire and rescue service ,104277,RAM Mount UK Ltd,RAM Mount UK Ltd,Management & Support Services,5,202402,17/05/2023,P6,9106402,"-5,455.80 ","5,455.80 ",C300,Other Equipment - Purchase,4300,ICT Capital Programme,"4,546.50 "
Nottimghamshire fire and rescue service ,100224,Delta Fire,Delta Fire,Management & Support Services,1,202402,23/03/2023,P6,9106487,"-36,828.00 ","36,828.00 ",C300,Other Equipment - Purchase,4200,Equipment Capital Programme,"30,690.00 "
Nottimghamshire fire and rescue service ,100479,MedTree,MedTree,Management & Support Services,1,202402,12/05/2023,P6,9106331,-907.14 ,907.14 ,C301,Operational Equipment - Purchase,4200,Equipment Capital Programme,5.95 
Nottimghamshire fire and rescue service ,100479,MedTree,MedTree,Management & Support Services,1,202402,12/05/2023,P6,9106331,-907.14 ,907.14 ,C301,Operational Equipment - Purchase,4200,Equipment Capital Programme,750.00 
Nottimghamshire fire and rescue service ,103094,Draeger Safety UK Limited,Draeger Safety UK Limited,Management & Support Services,5,202402,24/05/2023,P6,9106540,"-3,840.00 ","3,840.00 ",C301,Operational Equipment - Purchase,4200,Equipment Capital Programme,"1,700.00 "
,***Note:,,,,,,,,,,,,,,,
,"***The report shows the payment in its original form. This means disaggregating many invoices into individual component payments many of which will be less than £250 in their own right. This explains why you will see many of the amounts showing less than £250. They were, however, paid as part of an invoice of £250 or more.

**** The Invoice date is the date issued on the invoice. This date may fall out of the date range for the report. In most cases this is due to the invoice being received  late.",,,,,,,,,,,,,,,